Workbook

Sheet Open
A2: Cube It 2021 Best Cube In Business
A3: FUT | B3: DER | C3: Age Inc | D3: HS | E3: Y/co | F3: Youth | G3: Draw | H3: Rider Name | I3: Horse Name | J3: Pen | K3: Time | L3: Final Time | M3: Placing | N3: Money Earned | P3: D Placing | R3: Split
C4: A | D4: X | G4: 128 | H4: Mindy Holloway | I4: Heavens Got Credit | K4: 15.706 | M4: 1D 1st | N4: 974 | P4: 1D
G5: 142 | H5: Danyelle Campbell | I5: Scoop | K5: 15.864 | M5: 1D 2nd | N5: 797 | P5: 2D | Q5: =SUM(Q4+0.5) -> 0.5 | R5: 0.5
B6: X | G6: 28 | H6: Maddy Tucker | I6: CE Fire Down Below | K6: 15.867 | M6: 1D 3rd | N6: 590 | P6: 3D | Q6: =SUM(Q4+1) -> 1 | R6: 0.5
G7: 35 | H7: Ashley Schafer | I7: Boons French Angel | K7: 15.91 | M7: 1D 4th | N7: 384 | P7: 4D | Q7: =SUM(Q4+1.5) -> 1.5 | R7: 0.5
G8: 141 | H8: Ryan Reynolds | I8: One Slick Darlin | K8: 15.922 | M8: 1D 5th | N8: 207 | P8: 5D | Q8: =SUM(Q4+2) -> 2 | R8: 0.5
C9: A | D9: X | G9: 138 | H9: Autumn Woodruff | I9: Raw Firepower | K9: 15.979
C10: S | G10: 87 | H10: Lisa Wernli | I10: Flashs Fine Effort | K10: 15.993 | P10: # Entered
G11: 194 | H11: Haley Hughes | I11: Margarita Red Rita | K11: 15.997 | P11: =COUNTA(H4:H503) -> 201
E12: X | F12: X | G12: 187 | H12: Bayleigh Choate | I12: Imachocojinglejangle | K12: 16
G13: 51 | H13: Hailey Kinsel | I13: Thunder Stones | K13: 16.032 | P13: # Ran
G14: 157 | H14: Riley Fountain | I14: Royal Dame Ta Fame | K14: 16.036 | P14: =COUNTA(K4:K503) -> 201
C15: S | G15: 91 | H15: Becky Dillard | I15: Wow Shes Hot | K15: 16.049
B16: X | G16: 70 | H16: Lacy Billingsley | I16: Pv Watchmeneighneigh | K16: 16.06 | P16: # Left
A17: X | G17: 25 | H17: Kelsey Treharne | I17: AintGotNothinOnMe | K17: 16.083 | P17: =$P$11-$P$14 -> 0
A18: X | G18: 52 | H18: Kelly Mancinelli | I18: Justa Dash Of Eddie | K18: 16.086
G19: 2 | H19: Kelsey Treharne | I19: Fast Like Heaven | K19: 16.104
B20: X | G20: 13 | H20: Lauren Merica | I20: Gogo Romeo | K20: 16.138
G21: 20 | H21: Kathy Fields | I21: Regarding Numbers | K21: 16.14
G22: 18 | H22: Jennifer Burgess | I22: IfiwasUIdwannaBeMe 2 | K22: 16.141
G23: 170 | H23: Natalie Bland | I23: Bayou A cold One | K23: 16.148
G24: 176 | H24: Lane Hadley | I24: Steel | K24: 16.18
A25: X | G25: 11 | H25: Billie Ann Harmon | I25: Boots Too Quick | K25: 16.189
E26: X | F26: X | G26: 183 | H26: Lucas Sad | I26: Fate | K26: 16.191
A27: X | G27: 44 | H27: Kelsey Treharne | I27: TR Lying Badger | K27: 16.216 | M27: 2D 1st | N27: 812
C28: A | G28: 67 | H28: Jennifer Cullen | I28: HLC Pretty Lil Sugar | K28: 16.218 | M28: 2D 2nd | N28: 664
B29: X | G29: 85 | H29: Hailey Kinsel | I29: Viva La Corona | K29: 16.219 | M29: 2D 3rd | N29: 492
G30: 16 | H30: Hailey Kinsel | I30: Corona Share Of Fame | K30: 16.222 | M30: 2D 4th | N30: 320
C31: A | G31: 24 | H31: Kylee Scribner | I31: Badger A Conchadrift | K31: 16.235 | M31: 2D 5th | N31: 172
G32: 162 | H32: Jax Johnson | I32: Kiss Me Bill Compton | K32: 16.24
C33: A | G33: 153 | H33: Kali Carpenter | I33: I Do 123 | K33: 16.272
G34: 53 | H34: Cheyenne Harris | I34: One Blazin Fire | K34: 16.274
A35: X | G35: 161 | H35: Ryann Pedone | I35: Great Under Pressure | K35: 16.281
C36: S | G36: 171 | H36: Donna Tippen | I36: Check Me Out Guys | K36: 16.296
G37: 208 | H37: Natalie Bland | I37: Sage | K37: 16.303
G38: 148 | H38: Christina Dusendang | I38: For Fame and Bullion | K38: 16.329
G39: 88 | H39: Kelly Mancinelli | I39: EoTresMentiras | K39: 16.333
G40: 62 | H40: Kelsey Treharne | I40: Charming French Guy | K40: 16.338
G41: 83 | H41: Kelsey Treharne | I41: Liquid Courage 72 | K41: 16.347
G42: 204 | H42: Brooke Hickey | I42: Zeke | K42: 16.371
B43: X | C43: A | G43: 30 | H43: Jennifer Cullen | I43: Chasin Annies Fame | K43: 16.373
C44: S | G44: 139 | H44: Gena Franklin | I44: SS StreakyMe | K44: 16.374
A45: X | G45: 132 | H45: Ryann Pedone | I45: Pressured By Destiny | K45: 16.46
G46: 9 | H46: Samantha Hanna | I46: Dashing By You | K46: 16.478
B47: X | C47: S | G47: 33 | H47: Kathy Rush | I47: JL Twisted Roc | K47: 16.478
C48: S | G48: 123 | H48: Lisa Wernli | I48: Babe On The Run | K48: 16.479
C49: S | G49: 113 | H49: Lynn Saunders | I49: Chumly | K49: 16.497
G50: 76 | H50: Tori Volk | I50: CN Holy Cow | K50: 16.518
G51: 107 | H51: Mandi Cleveland | I51: Little Bit Of Load | K51: 16.519
G52: 130 | H52: Jax Johnson | I52: LR Design To Win | K52: 16.524
B53: X | G53: 6 | H53: Ryann Pedone | I53: Dash Ta Perfection | K53: 16.528
G54: 118 | H54: Chelsea Young | I54: Bogies French Hen | K54: 16.553
G55: 135 | H55: Sierra Scott | I55: Memo | K55: 16.569
G56: 77 | H56: Kylena Hager | I56: Bar B Firewatersteel | K56: 16.575
C57: A | G57: 131 | H57: Madison Smith | I57: Catty Kitty | K57: 16.58
G58: 94 | H58: Josianne St-Cry | I58: Down The Wire | K58: 16.581
G59: 97 | H59: Ashley Schafer | I59: Famous First Flight | K59: 16.596
G60: 49 | H60: Brooke Sully | I60: Ez Shake Em | K60: 16.6
A61: X | E61: X | F61: X | G61: 206 | H61: Bayleigh Choate | I61: TJR Stinson Blue | K61: 16.602
A62: X | C62: A | G62: 81 | H62: Jamie Wilson | I62: French Cinnamon | K62: 16.62
G63: 147 | H63: Lacey Harmon | I63: Mended Heart | K63: 16.623
G64: 193 | H64: Jax Johnson | I64: Kingdoms Royal Flush | K64: 16.628
A65: X | G65: 4 | H65: Lexi Peaden | I65: Zoned In | K65: 16.64
G66: 27 | H66: Lacy Billingsley | I66: PV Sippin On Fire | K66: 16.656
G67: 46 | H67: Lisa Jo Velliquette | I67: Namgis D 44 | K67: 16.659
C68: S | G68: 96 | H68: Jodi Stovall | I68: Miss French Drifter | K68: 16.673
G69: 137 | H69: Georgia Perkins | I69: Prada | K69: 16.681
C70: S | G70: 22 | H70: Dee Dee Jordan | I70: Fame Flingin Rebel | K70: 16.684
G71: 1 | H71: Kyra Boling | I71: Shesa Heaven Sent | K71: 16.698
G72: 5 | H72: Josianne St-Cry | I72: B | K72: 16.702
G73: 78 | H73: Michayla Schmitt | I73: KN Fabulous On Tap | K73: 16.71 | M73: 3D 1st | N73: 710
C74: S | G74: 101 | H74: Pat Oates | I74: Holy Fire N Money | K74: 16.718 | M74: 3D 2nd | N74: 581
G75: 7 | H75: Casey Hammons | I75: BH Trip Ta Fame | K75: 16.727 | M75: 3D 3rd | N75: 430
C76: A | G76: 179 | H76: Olivia Robinson | I76: Im Fine Your Mine | K76: 16.737 | M76: 3D 4th | N76: 280
G77: 127 | H77: Ashley Schafer | I77: Famous Storm Chaser | K77: 16.741 | M77: 3D 5th tie | N77: 76
C78: A | G78: 151 | H78: Caitlyn Schievink | I78: KN Mojito Over Rocks | K78: 16.741 | M78: 3D 5th tie | N78: 76
C79: A | G79: 89 | H79: Mindy Holloway | I79: First Rappin Judge | K79: 16.743
E80: X | F80: X | G80: 134 | H80: Marli Donegan | I80: Just The Way You Are | K80: 16.752
E81: X | F81: X | G81: 144 | H81: Delaney Denham | I81: Lil Man | K81: 16.754
G82: 125 | H82: Lacey Harmon | I82: Red Ryan Red Ryon | K82: 16.766
B83: X | E83: X | F83: X | G83: 55 | H83: Cienna Jacobsen | I83: Straight Up Smooth | K83: 16.776
G84: 43 | H84: Kylena Hager | I84: Stolis Tipsy Gypsy | K84: 16.815
G85: 71 | H85: Raney Nelson | I85: Stonee Bug Leo | K85: 16.838
G86: 133 | H86: Abby Fields | I86: Dashin In My Bugatti | K86: 16.857
G87: 99 | H87: Sara Reed | K87: 16.861
C88: A | G88: 211 | H88: Marka Genz | I88: Shakem Fantabulos | K88: 16.875
A89: X | C89: A | G89: 181 | H89: Corbin Pinyan | I89: SF No Speed Limit | K89: 16.903
G90: 186 | H90: Ashley Schafer | I90: Heads Up Gorgeous | K90: 16.905
C91: A | G91: 80 | H91: Maddie Dewberry | I91: Flights Quick Chick | K91: 16.941
G92: 105 | H92: Aeriel Eggers | I92: SN Apollo | K92: 16.956
G93: 15 | H93: Kelly Mancinelli | I93: Nicks Twister | K93: 16.974
D94: X | G94: 93 | H94: Kaitlin Schuck | I94: Dejons Fame | K94: 16.993
G95: 56 | H95: Jennifer Burgess | I95: Streakin Dynamo | K95: 17.002
G96: 74 | H96: Roberta Chott | I96: Guys Hot Frost | K96: 17.002
C97: A | G97: 155 | H97: Hailey Britton | I97: Roany | K97: 17.01
C98: S | G98: 146 | H98: Dawn Fryar | I98: Special Bid of Frost | K98: 17.051
C99: S | G99: 164 | H99: Martha Smith | I99: Can I Get A Hallelujah | K99: 17.069
G100: 116 | H100: Ella Barch | I100: Drop Dead Red | K100: 17.07
G101: 172 | H101: Emily Necaise | I101: Black | K101: 17.07
G102: 112 | H102: Patty Ralls | I102: Double Down Stinson | K102: 17.082
G103: 207 | H103: Corbin Pinyan | K103: 17.1
C104: A | G104: 109 | H104: Jenna Beck | I104: Smokem Doc Frenchman | K104: 17.12
E105: X | F105: X | G105: 102 | H105: Madeleine Moll | I105: GearEm Up Nic | K105: 17.124
G106: 177 | H106: Brooke Hickey | I106: Victor | K106: 17.148
G107: 26 | H107: Camelia Jenkins | I107: Trigger | K107: 17.165
C108: A | G108: 166 | H108: Haley Hughes | I108: American Makever | K108: 17.18
G109: 129 | H109: Allison Humphrey | I109: Tom Streakin Brady | K109: 17.223 | M109: 4D 1st | N109: 487
G110: 31 | H110: Liz Gundersen | I110: Spinnin Cookies | K110: 17.229 | M110: 4D 2nd | N110: 399
G111: 10 | H111: Kylena Hager | I111: Excuse My French | K111: 17.246 | M111: 4D 3rd | N111: 295
G112: 188 | H112: Riley Fountain | I112: Dixee Land Deelite | K112: 17.248 | L112: X | M112: 4D 4th | N112: 192
A113: X | G113: 100 | H113: Ryann Pedone | I113: Rivons Mr America | K113: 17.307 | M113: 4D 5th | N113: 103
E114: X | F114: X | G114: 180 | H114: Rylee Singleton | I114: Impulse | K114: 17.315
C115: A | G115: 120 | H115: Jessica Mullens | I115: Doc Eyed Fame | K115: 17.323
F116: X | G116: 156 | H116: Madie Bond | I116: Frosted In Dreams | K116: 17.328
G117: 178 | H117: Tammy Hickey | I117: Rosa | K117: 17.332
A118: X | G118: 8 | H118: Kyle Etchart | I118: Hez Got A Caboose | K118: 17.344
G119: 150 | H119: Amber Brown | I119: Brownie | K119: 17.373
G120: 90 | H120: Madison Smith | I120: Coronas Best | K120: 17.417
G121: 106 | H121: Chelan Pimentel | I121: Guys Minnie Jet | K121: 17.422
C122: S | G122: 126 | H122: Martha Smith | I122: My Epic Moment | K122: 17.467
A123: X | G123: 174 | H123: Danyelle Campbell | I123: Cappy | K123: 17.476
C124: S | G124: 48 | H124: Jo Kirby | I124: Shez Fast For Cash | K124: 17.495
G125: 169 | H125: Nicole Bronsan | I125: Jingle Bob Chex | K125: 17.496
G126: 58 | H126: Debra Cooper | K126: 17.508
C127: S | G127: 41 | H127: Carole Lynn Newsome | I127: Pistol | K127: 17.511
G128: 111 | H128: Nicole Stageman | I128: Me Texann Firewater | K128: 17.511
G129: 199 | H129: Corbin Pinyan | K129: 17.552
G130: 42 | H130: Tana LeBree | I130: Mississippi Slick | K130: 17.56
G131: 50 | H131: Kyle Etchart | I131: Panfis Corona | K131: 17.573
E132: X | F132: X | G132: 160 | H132: Bayleigh Choate | I132: Smashed and Famous | K132: 17.641
G133: 184 | H133: Lisa DeGeare | I133: Cutters Golden Mist | K133: 17.674
G134: 19 | H134: Nicole Martin | I134: Royal Dunit | K134: 17.683
G135: 154 | H135: Ashley Schafer | I135: Guys Buzzed On Fame | K135: 17.688
C136: S | G136: 72 | H136: Simone Elmore | I136: Mitey Moon Dash | K136: 17.798 | M136: 5D 1st | N136: 325
C137: A | G137: 165 | H137: Corbin Pinyan | I137: FS Burrs Many Clouds | K137: 17.807 | M137: 5D 2nd | N137: 266
G138: 185 | H138: Kaylee Kadow | I138: RH Sugar Shack | K138: 17.854 | M138: 5D 3rd | N138: 197
G139: 149 | H139: Heather Mensen | I139: Chosen To Be Reckless | K139: 17.866 | M139: 5D 4th | N139: 128
C140: S | G140: 39 | H140: Judy McReynolds | I140: Genuine Honey | K140: 17.895 | M140: 5D 5th | N140: 69
G141: 210 | H141: Corbin Pinyan | I141: Joe | K141: 17.909
C142: S | G142: 196 | H142: Gretchen Goedeken | I142: Spots In My Dream | K142: 18.043
G143: 173 | H143: Kelsey Ornelas | I143: Boom Boom | K143: 18.05
G144: 29 | H144: Karen Rego | I144: Juno Im The Best | K144: 18.087
G145: 45 | H145: Lakota Stucky | I145: Atonement | K145: 18.088
E146: X | F146: X | G146: 61 | H146: Stormi Branch | I146: Pretty Theory | K146: 18.097
G147: 159 | H147: Lee Ann Guilkey | I147: Blazin Gator | K147: 18.259
G148: 182 | H148: Amber Rutledge | K148: 18.285
G149: 95 | H149: Brittany Brown | I149: Chip Zip Investment | K149: 18.347
G150: 167 | H150: Sierra Scott | I150: Boogie | K150: 18.38
G151: 136 | H151: Kelsey Ornelas | I151: Handsome | K151: 18.459
G152: 163 | H152: Jaidyn Ornelas | I152: Jessadasher | K152: broken
G153: 40 | H153: Pascale Sylvain | I153: Pff Streakin Miracle | K153: nt
G154: 64 | H154: Cassidy Wahlert | I154: Big Classic Indian | K154: nt
A155: X | G155: 66 | H155: Maddy Tucker | I155: Dame Ta Fame | K155: nt
G156: 75 | H156: Colt Tew | K156: nt
E157: X | F157: X | G157: 143 | H157: Aspen Adams | I157: Georgia | K157: nt
G158: 209 | H158: Jaidyn Ornelas | I158: Peter Wabbit | K158: nt 16.928
C159: A | G159: 115 | H159: Whitney Godinez | I159: Bent On Firewater | K159: nt15.849
B160: X | G160: 69 | H160: Ryann Pedone | I160: Famous Frost | K160: nt15.874
C161: A | G161: 117 | H161: Jamie Wilson | I161: A Streak Of Phame | K161: nt15.927
C162: S | D162: X | G162: 59 | H162: Dee Dee Jordan | I162: Firen For Jack | K162: nt16.140
A163: X | G163: 119 | H163: Dani Buhler | I163: YouAintSeenFamousYet | K163: nt16.171
C164: S | G164: 34 | H164: Cindy Wheeler | I164: SK I'll MakeUFamous | K164: nt16.299
G165: 86 | H165: Dani Buhler | I165: Flashy French Kirk | K165: nt16.307
G166: 68 | H166: Ashley Schafer | I166: Famous Cash Can | K166: nt16.313
C167: S | G167: 92 | H167: Jolene Jones | I167: Peppys Streakof Fame | K167: nt16.417
B168: X | C168: S | G168: 121 | H168: Martha Jordan | I168: MV Fury Of The Fame | K168: nt16.443
G169: 79 | H169: Ella Barch | I169: Rebels Cash Cartel | K169: nt16.493
B170: X | G170: 47 | H170: Sarah B Phillips | I170: Seis French Kisses | K170: nt16.528
G171: 23 | H171: Katie Perkins | I171: Sweet Carmella Moon | K171: nt16.560
G172: 3 | H172: Ashley Schafer | I172: French Streakintwist | K172: nt16.582
G173: 21 | H173: Hannah Hertel | I173: LenasDashtavictory | K173: nt16.636
A174: X | G174: 124 | H174: Benjamin Beall | I174: LadiesLoveSmoothGuys | K174: nt16.749
A175: X | G175: 103 | H175: Renee Douglas | I175: Tickit Ta Fame | K175: nt16.758
A176: X | G176: 32 | H176: Josianne St-Cry | I176: Vodka On The Rocks | K176: nt16.776
A177: X | C177: A | G177: 82 | H177: Whitney Godinez | I177: Hello Darling | K177: nt16.815
G178: 110 | H178: Michayla Schmitt | I178: VF Blooming Stinson | K178: nt16.837
G179: 175 | H179: Katie Zuidema | I179: Misty K | K179: nt16.978
G180: 168 | H180: Lacey Harmon | I180: Fireball Fling | K180: nt16.979
G181: 63 | H181: Chloe Little | I181: Stormy | K181: nt17.011
G182: 65 | H182: Riley Chown | I182: Hez Simply Fabulous | K182: nt17.079
E183: X | F183: X | G183: 98 | H183: Stormi Branch | I183: Class Honoree | K183: nt17.203
G184: 60 | H184: Jaidyn Ornelas | I184: Awards First | K184: nt17.267
C185: A | G185: 198 | H185: Timberly Erickson | I185: Fine Whatever | K185: nt17.359
G186: 152 | H186: Ashlyn Williams | I186: Sweet Day To Fly | K186: nt17.377
G187: 57 | H187: Nicole Martin | I187: Lana Smokes Oh Cay | K187: nt17.396
G188: 189 | H188: Alisha Todd | I188: LG El Javalin | K188: nt17.580
G189: 104 | H189: Haley Alvarez | I189: Donny Q | K189: nt17.609
E190: X | F190: X | G190: 17 | H190: Kaylee Lehrmann | I190: KL Dashing Shine | K190: nt17.850
G191: 37 | H191: Shelby Crooks | I191: SA Docs Dual Ruby | K191: nt17.873
G192: 73 | H192: Heather Glover | I192: Peps Diamond Hickory | K192: nt18.098
G193: 14 | H193: Jessica Mohr | I193: KN Chattin Bout Fame | K193: nt18.103
C194: A | G194: 122 | H194: Maddie Dewberry | I194: CowgirlsNPolitics | K194: nt18.417
G195: 108 | H195: Kacey Faust | I195: Wily Makin Moonshine | K195: nt18.639
A196: X | G196: 38 | H196: Ryann Pedone | I196: Mister Treis | K196: nt18.713
G197: 145 | H197: Mandi Cleveland | I197: Rare Corona Gone | K197: nt19.354
G198: 158 | H198: Ashley Adams | I198: Darnell | K198: nt19.635
G199: 191 | H199: Nicole Bronsan | I199: Lynx Hollywood Cat | K199: nt19.977
G200: 197 | H200: Emily Necaise | I200: Rayne | K200: nt20.273
G201: 36 | H201: Jenna Napier | I201: Frenchmans Dually | K201: nt20.434
... 302 more rows

Sheet Senior
A1: Futurity | B1: Der | C1: Senior | D1: BBR | E1: Draw | F1: Rider Name | G1: Horse Name | H1: Time | I1: Placing | J1: Money Earned
E2: 1 | F2: Lisa Wernli | G2: Flashs Fine Effort | H2: 15.993 | I2: 1D 1st | J2: 92
E3: 2 | F3: Becky Dillard | G3: Wow Shes Hot | H3: 16.049 | I3: 1D 2nd | J3: 62
E4: 3 | F4: Donna Tippen | G4: Check Me Out Guys | H4: 16.296
E5: 4 | F5: Gena Franklin | G5: SS StreakyMe | H5: 16.374
E6: 5 | F6: Kathy Rush | G6: JL Twisted Roc | H6: 16.478
E7: 6 | F7: Lisa Wernli | G7: Babe On The Run | H7: 16.479
E8: 7 | F8: Lynn Saunders | G8: Chumly | H8: 16.497 | I8: 2D 1st | J8: 79
E9: 8 | F9: Jodi Stovall | G9: Miss French Drifter | H9: 16.673 | I9: 2D 2nd | J9: 53
E10: 9 | F10: Dee Dee Jordan | G10: Fame Flingin Rebel | H10: 16.684
E11: 10 | F11: Pat Oates | G11: Holy Fire N Money | H11: 16.718
E12: 11 | F12: Dawn Fryar | G12: Special Bid of Frost | H12: 17.051 | I12: 3D 1st | J12: 53
E13: 12 | F13: Martha Smith | G13: Can I Get A Hallelujah | H13: 17.069 | I13: 3D 2nd | J13: 35
E14: 13 | F14: Martha Smith | G14: My Epic Moment | H14: 17.467
E15: 14 | F15: Jo Kirby | G15: Shez Fast For Cash | H15: 17.495 | I15: 4D 1st | J15: 40
E16: 15 | F16: Carole Lynn Newsome | G16: Pistol | H16: 17.511 | I16: 4D 2nd | J16: 26
E17: 16 | F17: Simone Elmore | G17: Mitey Moon Dash | H17: 17.798
E18: 17 | F18: Judy McReynolds | G18: Genuine Honey | H18: 17.895
E19: 18 | F19: Gretchen Goedeken | G19: Spots In My Dream | H19: 18.043
E20: 19 | F20: Dee Dee Jordan | G20: Firen For Jack | H20: nt16.140
E21: 20 | F21: Cindy Wheeler | G21: SK I'll MakeUFamous | H21: nt16.299
E22: 21 | F22: Jolene Jones | G22: Peppys Streakof Fame | H22: nt16.417
E23: 22 | F23: Martha Jordan | G23: MV Fury Of The Fame | H23: nt16.443
E24: 23
E25: 25
E26: 26
E27: 27
E28: 28
E29: 29
E30: 30
E31: 31
E32: 32
E33: 24
E34: 33
E35: 34
E36: 35
E37: 36
E38: 37
E39: 38
E40: 39
E41: 40
E42: 41
E43: 42
E44: 43
E45: 44
E46: 45
E47: 46
E48: 47
E49: 48
E50: 49
E51: 50
E52: 51
E53: 52
E54: 53
E55: 54
E56: 55
E57: 56
E58: 57
E59: 58
E60: 59
E61: 60
E62: 61
E63: 62
E64: 63
E65: 64
E66: 65
E67: 66
E68: 67
E69: 68
E70: 69
E71: 70
E72: 71
E73: 72
E74: 73
E75: 74
E76: 75
E77: 76
E78: 77
E79: 78
E80: 79
E81: 80
E82: 81
E83: 82
E84: 83
E85: 84
E86: 85
E87: 86
E88: 87
E89: 88
E90: 89
E91: 90
E92: 91
E93: 92
E94: 93
E95: 94
E96: 95
E97: 96
E98: 97
E99: 98
E100: 99
E101: 100
E102: 101
E103: 102
E104: 103
E105: 104
E106: 105
E107: 106
E108: 107
E109: 108
E110: 109
E111: 110
E112: 111
E113: 112
E114: 113
E115: 114
E116: 115
E117: 116
E118: 117
E119: 118
E120: 119
E121: 120
E122: 121
E123: 122
E124: 123
E125: 124
E126: 125
E127: 126
E128: 127
E129: 128
E130: 129
E131: 130
E132: 131
E133: 132
E134: 133
E135: 134
E136: 135
E137: 136
E138: 137
E139: 138
E140: 139
E141: 140
E142: 141
E143: 142
E144: 143
E145: 144
E146: 145
E147: 146
E148: 147
E149: 148
E150: 149
E151: 150
E152: 151
E153: 152
E154: 153
E155: 154
E156: 155
E157: 156
E158: 157
E159: 158
E160: 159
E161: 160
E162: 161
E163: 162
E164: 163
E165: 164
E166: 165
E167: 166
E168: 167
E169: 168
E170: 169
E171: 170
E172: 171
E173: 172
E174: 173
E175: 174
E176: 175
E177: 176
E178: 177
E179: 178
E180: 179
E181: 180
E182: 181
E183: 182
E184: 183
E185: 184
E186: 185
E187: 186
E188: 187
E189: 188
E190: 189
E191: 190
E192: 191
E193: 192
E194: 193
E195: 194
E196: 195
E197: 196
E198: 197
E199: 198
E200: 199
... 101 more rows

Sheet Adult
A1: Futurity | B1: Der | C1: Adult | D1: BBR | E1: Draw | F1: Rider Name | G1: Horse Name | H1: Time | I1: Placing | J1: Money Earned
E2: 1 | F2: Mindy Holloway | G2: Heavens Got Credit | H2: 15.706 | I2: 1D 1st | J2: 101
E3: 2 | F3: Autumn Woodruff | G3: Raw Firepower | H3: 15.979 | I3: 1D 2nd | J3: 67
E4: 3 | F4: Jennifer Cullen | G4: HLC Pretty Lil Sugar | H4: 16.218 | I4: 2D 1st | J4: 86
E5: 4 | F5: Kylee Scribner | G5: Badger A Conchadrift | H5: 16.235 | I5: 2D 2nd | J5: 58
E6: 5 | F6: Kali Carpenter | G6: I Do 123 | H6: 16.272
E7: 6 | F7: Jennifer Cullen | G7: Chasin Annies Fame | H7: 16.373
E8: 7 | F8: Madison Smith | G8: Catty Kitty | H8: 16.58
E9: 8 | F9: Jamie Wilson | G9: French Cinnamon | H9: 16.62
E10: 9 | F10: Olivia Robinson | G10: Im Fine Your Mine | H10: 16.737 | I10: 3D 1st | J10: 58
E11: 10 | F11: Caitlyn Schievink | G11: KN Mojito Over Rocks | H11: 16.741 | I11: 3D 2nd | J11: 38
E12: 11 | F12: Mindy Holloway | G12: First Rappin Judge | H12: 16.743
E13: 12 | F13: Corbin Pinyan | G13: SF No Speed Limit | H13: 16.903
E14: 13 | F14: Maddie Dewberry | G14: Flights Quick Chick | H14: 16.941
E15: 14 | F15: Hailey Britton | G15: Roany | H15: 17.01
E16: 15 | F16: Jenna Beck | G16: Smokem Doc Frenchman | H16: 17.12
E17: 16 | F17: Haley Hughes | G17: American Makever | H17: 17.18
E18: 17 | F18: Jessica Mullens | G18: Doc Eyed Fame | H18: 17.323 | I18: 4D 1st | J18: 43
E19: 18 | F19: Corbin Pinyan | G19: FS Burrs Many Clouds | H19: 17.807 | I19: 4D 2nd | J19: 29
E20: 19 | F20: Whitney Godinez | G20: Bent On Firewater | H20: nt15.849
E21: 20 | F21: Jamie Wilson | G21: A Streak Of Phame | H21: nt15.927
E22: 21 | F22: Whitney Godinez | G22: Hello Darling | H22: nt16.815
E23: 22 | F23: Marka Genz | G23: Shakem Fantabulos | H23: nt16.928
E24: 23 | F24: Timberly Erickson | G24: Fine Whatever | H24: nt17.359
E25: 24 | F25: Maddie Dewberry | G25: CowgirlsNPolitics | H25: nt18.417
E26: 25
E27: 26
E28: 27
E29: 28
E30: 29
E31: 30
E32: 31
E33: 32
E34: 33
E35: 34
E36: 35
E37: 36
E38: 37
E39: 38
E40: 39
E41: 40
E42: 41
E43: 42
E44: 43
E45: 44
E46: 45
E47: 46
E48: 47
E49: 48
E50: 49
E51: 50
E52: 51
E53: 52
E54: 53
E55: 54
E56: 55
E57: 56
E58: 57
E59: 58
E60: 59
E61: 60
E62: 61
E63: 62
E64: 63
E65: 64
E66: 65
E67: 66
E68: 67
E69: 68
E70: 69
E71: 70
E72: 71
E73: 72
E74: 73
E75: 74
E76: 75
E77: 76
E78: 77
E79: 78
E80: 79
E81: 80
E82: 81
E83: 82
E84: 83
E85: 84
E86: 85
E87: 86
E88: 87
E89: 88
E90: 89
E91: 90
E92: 91
E93: 92
E94: 93
E95: 94
E96: 95
E97: 96
E98: 97
E99: 98
E100: 99
E101: 100
E102: 101
E103: 102
E104: 103
E105: 104
E106: 105
E107: 106
E108: 107
E109: 108
E110: 109
E111: 110
E112: 111
E113: 112
E114: 113
E115: 114
E116: 115
E117: 116
E118: 117
E119: 118
E120: 119
E121: 120
E122: 121
E123: 122
E124: 123
E125: 124
E126: 125
E127: 126
E128: 127
E129: 128
E130: 129
E131: 130
E132: 131
E133: 132
E134: 133
E135: 134
E136: 135
E137: 136
E138: 137
E139: 138
E140: 139
E141: 140
E142: 141
E143: 142
E144: 143
E145: 144
E146: 145
E147: 146
E148: 147
E149: 148
E150: 149
E151: 150
E152: 151
E153: 152
E154: 153
E155: 154
E156: 155
E157: 156
E158: 157
E159: 158
E160: 159
E161: 160
E162: 161
E163: 162
E164: 163
E165: 164
E166: 165
E167: 166
E168: 167
E169: 168
E170: 169
E171: 170
E172: 171
E173: 172
E174: 173
E175: 174
E176: 175
E177: 176
E178: 177
E179: 178
E180: 179
E181: 180
E182: 181
E183: 182
E184: 183
E185: 184
E186: 185
E187: 186
E188: 187
E189: 188
E190: 189
E191: 190
E192: 191
E193: 192
E194: 193
E195: 194
E196: 195
E197: 196
E198: 197
E199: 198
E200: 199
... 101 more rows

Sheet Youth
A1: Futurity | B1: Der | C1: Youth | D1: BBR | E1: Draw | F1: Rider Name | G1: Horse Name | H1: Time | I1: Placing | J1: Money Earned
E2: 1 | F2: Bayleigh Choate | G2: Imachocojinglejangle | H2: 16 | I2: 1D 1st | J2: 137
E3: 2 | F3: Lucas Sad | G3: Fate | H3: 16.191
E4: 3 | F4: Bayleigh Choate | G4: TJR Stinson Blue | H4: 16.602 | I4: 2D 1st | J4: 118
E5: 4 | F5: Marli Donegan | G5: Just The Way You Are | H5: 16.752
E6: 5 | F6: Delaney Denham | G6: Lil Man | H6: 16.754
E7: 6 | F7: Cienna Jacobsen | G7: Straight Up Smooth | H7: 16.776
E8: 7 | F8: Madeleine Moll | G8: GearEm Up Nic | H8: 17.124 | I8: 3D 1st | J8: 78
E9: 8 | F9: Rylee Singleton | G9: Impulse | H9: 17.315
E10: 9 | F10: Madie Bond | G10: Frosted In Dreams | H10: 17.328
E11: 10 | F11: Bayleigh Choate | G11: Smashed and Famous | H11: 17.641 | I11: 4D 1st | J11: 59
E12: 11 | F12: Stormi Branch | G12: Pretty Theory | H12: 18.097
E13: 12 | F13: Aspen Adams | G13: Georgia | H13: nt
E14: 13 | F14: Stormi Branch | G14: Class Honoree | H14: nt17.203
E15: 14 | F15: Kaylee Lehrmann | G15: KL Dashing Shine | H15: nt17.850
E16: 15
E17: 16
E18: 17
E19: 18
E20: 19
E21: 20
E22: 21
E23: 22
E24: 23
E25: 24
E26: 25
E27: 26
E28: 27
E29: 28
E30: 29
E31: 30
E32: 31
E33: 32
E34: 33
E35: 34
E36: 35
E37: 36
E38: 37
E39: 38
E40: 39
E41: 40
E42: 41
E43: 42
E44: 43
E45: 44
E46: 45
E47: 46
E48: 47
E49: 48
E50: 49
E51: 50
E52: 51
E53: 52
E54: 53
E55: 54
E56: 55
E57: 56
E58: 57
E59: 58
E60: 59
E61: 60
E62: 61
E63: 62
E64: 63
E65: 64
E66: 65
E67: 66
E68: 67
E69: 68
E70: 69
E71: 70
E72: 71
E73: 72
E74: 73
E75: 74
E76: 75
E77: 76
E78: 77
E79: 78
E80: 79
E81: 80
E82: 81
E83: 82
E84: 83
E85: 84
E86: 85
E87: 86
E88: 87
E89: 88
E90: 89
E91: 90
E92: 91
E93: 92
E94: 93
E95: 94
E96: 95
E97: 96
E98: 97
E99: 98
E100: 99
E101: 100
E102: 101
E103: 102
E104: 103
E105: 104
E106: 105
E107: 106
E108: 107
E109: 108
E110: 109
E111: 110
E112: 111
E113: 112
E114: 113
E115: 114
E116: 115
E117: 116
E118: 117
E119: 118
E120: 119
E121: 120
E122: 121
E123: 122
E124: 123
E125: 124
E126: 125
E127: 126
E128: 127
E129: 128
E130: 129
E131: 130
E132: 131
E133: 132
E134: 133
E135: 134
E136: 135
E137: 136
E138: 137
E139: 138
E140: 139
E141: 140
E142: 141
E143: 142
E144: 143
E145: 144
E146: 145
E147: 146
E148: 147
E149: 148
E150: 149
E151: 150
E152: 151
E153: 152
E154: 153
E155: 154
E156: 155
E157: 156
E158: 157
E159: 158
E160: 159
E161: 160
E162: 161
E163: 162
E164: 163
E165: 164
E166: 165
E167: 166
E168: 167
E169: 168
E170: 169
E171: 170
E172: 171
E173: 172
E174: 173
E175: 174
E176: 175
E177: 176
E178: 177
E179: 178
E180: 179
E181: 180
E182: 181
E183: 182
E184: 183
E185: 184
E186: 185
E187: 186
E188: 187
E189: 188
E190: 189
E191: 190
E192: 191
E193: 192
E194: 193
E195: 194
E196: 195
E197: 196
E198: 197
E199: 198
E200: 199
... 101 more rows

Sheet Derby
A1: Futurity | B1: Derby | C1: Age Inct. | D1: BBR | E1: Draw | F1: Rider Name | G1: Horse Name | H1: Time | I1: Placing | J1: Money Earned
E2: 1 | F2: Maddy Tucker | G2: CE Fire Down Below | H2: 15.867 | I2: 1st | J2: 264
E3: 2 | F3: Lacy Billingsley | G3: Pv Watchmeneighneigh | H3: 16.06 | I3: 2nd | J3: 176
E4: 3 | F4: Lauren Merica | G4: Gogo Romeo | H4: 16.138
E5: 4 | F5: Hailey Kinsel | G5: Viva La Corona | H5: 16.219
E6: 5 | F6: Jennifer Cullen | G6: Chasin Annies Fame | H6: 16.373
E7: 6 | F7: Kathy Rush | G7: JL Twisted Roc | H7: 16.478
E8: 7 | F8: Ryann Pedone | G8: Dash Ta Perfection | H8: 16.528
E9: 8 | F9: Cienna Jacobsen | G9: Straight Up Smooth | H9: 16.776
E10: 9 | F10: Ryann Pedone | G10: Famous Frost | H10: nt15.874
E11: 10 | F11: Martha Jordan | G11: MV Fury Of The Fame | H11: nt16.443
E12: 11 | F12: Sarah B Phillips | G12: Seis French Kisses | H12: nt16.528
E13: 12
E14: 13
E15: 14
E16: 15
E17: 16
E18: 17
E19: 18
E20: 19
E21: 20
E22: 23
E23: 24
E24: 25
E25: 26
E26: 27
E27: 28
E28: 29
E29: 30
E30: 31
E31: 32
E32: 33
E33: 34
E34: 35
E35: 36
E36: 37
E37: 38
E38: 39
E39: 40
E40: 41
E41: 42
E42: 43
E43: 44
E44: 45
E45: 46
E46: 47
E47: 48
E48: 49
E49: 50
E50: 51
E51: 52
E52: 53
E53: 54
E54: 55
E55: 56
E56: 57
E57: 58
E58: 59
E59: 60
E60: 61
E61: 62
E62: 63
E63: 64
E64: 65
E65: 66
E66: 67
E67: 68
E68: 69
E69: 70
E70: 71
E71: 72
E72: 73
E73: 74
E74: 75
E75: 76
E76: 77
E77: 78
E78: 79
E79: 80
E80: 81
E81: 82
E82: 83
E83: 84
E84: 85
E85: 86
E86: 87
E87: 88
E88: 89
E89: 90
E90: 91
E91: 92
E92: 93
E93: 94
E94: 95
E95: 96
E96: 97
E97: 98
E98: 99
E99: 100
E100: 101
E101: 102
E102: 103
E103: 104
E104: 105
E105: 106
E106: 107
E107: 108
E108: 109
E109: 110
E110: 111
E111: 112
E112: 113
E113: 114
E114: 115
E115: 116
E116: 117
E117: 118
E118: 119
E119: 120
E120: 121
E121: 122
E122: 123
E123: 124
E124: 125
E125: 126
E126: 127
E127: 128
E128: 129
E129: 130
E130: 131
E131: 132
E132: 133
E133: 134
E134: 135
E135: 136
E136: 137
E137: 138
E138: 139
E139: 140
E140: 141
E141: 142
E142: 143
E143: 144
E144: 145
E145: 146
E146: 147
E147: 148
E148: 149
E149: 150
E150: 151
E151: 152
E152: 153
E153: 154
E154: 155
E155: 156
E156: 157
E157: 158
E158: 159
E159: 160
E160: 161
E161: 162
E162: 163
E163: 164
E164: 165
E165: 166
E166: 167
E167: 168
E168: 169
E169: 170
E170: 171
E171: 172
E172: 173
E173: 174
E174: 175
E175: 176
E176: 177
E177: 178
E178: 179
E179: 180
E180: 181
E181: 182
E182: 183
E183: 184
E184: 185
E185: 186
E186: 187
E187: 188
E188: 189
E189: 190
E190: 191
E191: 192
E192: 193
E193: 194
E194: 195
E195: 196
E196: 197
E197: 198
E198: 199
E199: 200
E200: 201
... 99 more rows

Sheet High Stakes
A1: HS | B1: Der | C1: Age Inct. | D1: BBR | E1: Draw | F1: Rider Name | G1: Horse Name | H1: Time | I1: Placing | J1: Money Earned
E2: 1 | F2: Mindy Holloway | G2: Heavens Got Credit | H2: 15.706 | I2: 1st | J2: 320
E3: 2 | F3: Autumn Woodruff | G3: Raw Firepower | H3: 15.979
E4: 3 | F4: Kaitlin Schuck | G4: Dejons Fame | H4: 16.993
E5: 4 | F5: Dee Dee Jordan | G5: Firen For Jack | H5: nt16.140
E6: 5
E7: 6
E8: 7
E9: 8
E10: 9
E11: 10
E12: 11
E13: 12
E14: 13
E15: 14
E16: 15
E17: 16
E18: 17
E19: 18
E20: 19
E21: 20
E22: 21
E23: 22
E24: 23
E25: 24
E26: 25
E27: 26
E28: 27
E29: 28
E30: 29
E31: 30
E32: 31
E33: 32
E34: 33
E35: 34
E36: 35
E37: 36
E38: 37
E39: 38
E40: 39
E41: 40
E42: 41
E43: 42
E44: 43
E45: 44
E46: 45
E47: 46
E48: 47
E49: 48
E50: 49
E51: 50
E52: 51
E53: 52
E54: 53
E55: 54
E56: 55
E57: 56
E58: 57
E59: 58
E60: 59
E61: 60
E62: 61
E63: 62
E64: 63
E65: 64
E66: 65
E67: 66
E68: 67
E69: 68
E70: 69
E71: 70
E72: 71
E73: 72
E74: 73
E75: 74
E76: 75
E77: 76
E78: 77
E79: 78
E80: 79
E81: 80
E82: 81
E83: 82
E84: 83
E85: 84
E86: 85
E87: 86
E88: 87
E89: 88
E90: 89
E91: 90
E92: 91
E93: 92
E94: 93
E95: 94
E96: 95
E97: 96
E98: 97
E99: 98
E100: 99
E101: 100
E102: 101
E103: 102
E104: 103
E105: 104
E106: 105
E107: 106
E108: 107
E109: 108
E110: 109
E111: 110
E112: 111
E113: 112
E114: 113
E115: 114
E116: 115
E117: 116
E118: 117
E119: 118
E120: 119
E121: 120
E122: 121
E123: 122
E124: 123
E125: 124
E126: 125
E127: 126
E128: 127
E129: 128
E130: 129
E131: 130
E132: 131
E133: 132
E134: 133
E135: 134
E136: 135
E137: 136
E138: 137
E139: 138
E140: 139
E141: 140
E142: 141
E143: 142
E144: 143
E145: 144
E146: 145
E147: 146
E148: 147
E149: 148
E150: 149
E151: 150
E152: 151
E153: 152
E154: 153
E155: 154
E156: 155
E157: 156
E158: 157
E159: 158
E160: 159
E161: 160
E162: 161
E163: 162
E164: 163
E165: 164
E166: 165
E167: 166
E168: 167
E169: 168
E170: 169
E171: 170
E172: 171
E173: 172
E174: 173
E175: 174
E176: 175
E177: 176
E178: 177
E179: 178
E180: 179
E181: 180
E182: 181
E183: 182
E184: 183
E185: 184
E186: 185
E187: 186
E188: 187
E189: 188
E190: 189
E191: 190
E192: 191
E193: 192
E194: 193
E195: 194
E196: 195
E197: 196
E198: 197
E199: 198
E200: 199
... 101 more rows

Sheet Futurity
A1: Futurity | B1: Der | C1: Age Inct. | D1: BBR | E1: Draw | F1: Rider Name | G1: Horse Name | H1: Time | I1: Placing | J1: Money Earned
E2: 1 | F2: Kelsey Treharne | G2: AintGotNothinOnMe | H2: 16.083 | I2: 1D 1st | J2: 336
E3: 2 | F3: Kelly Mancinelli | G3: Justa Dash Of Eddie | H3: 16.086 | I3: 1D 2nd | J3: 224
E4: 3 | F4: Billie Ann Harmon | G4: Boots Too Quick | H4: 16.189
E5: 4 | F5: Kelsey Treharne | G5: TR Lying Badger | H5: 16.216
E6: 5 | F6: Ryann Pedone | G6: Great Under Pressure | H6: 16.281
E7: 6 | F7: Ryann Pedone | G7: Pressured By Destiny | H7: 16.46
E8: 7 | F8: Bayleigh Choate | G8: TJR Stinson Blue | H8: 16.602 | I8: 2D 1st | J8: 144
E9: 8 | F9: Jamie Wilson | G9: French Cinnamon | H9: 16.62 | I9: 2D 2nd | J9: 96
E10: 9 | F10: Lexi Peaden | G10: Zoned In | H10: 16.64
E11: 10 | F11: Corbin Pinyan | G11: SF No Speed Limit | H11: 16.903
E12: 11 | F12: Ryann Pedone | G12: Rivons Mr America | H12: 17.307
E13: 12 | F13: Kyle Etchart | G13: Hez Got A Caboose | H13: 17.344
E14: 13 | F14: Danyelle Campbell | G14: Cappy | H14: 17.476
E15: 14 | F15: Maddy Tucker | G15: Dame Ta Fame | H15: nt
E16: 15 | F16: Dani Buhler | G16: YouAintSeenFamousYet | H16: nt16.171
E17: 16 | F17: Benjamin Beall | G17: LadiesLoveSmoothGuys | H17: nt16.749
E18: 17 | F18: Renee Douglas | G18: Tickit Ta Fame | H18: nt16.758
E19: 18 | F19: Josianne St-Cry | G19: Vodka On The Rocks | H19: nt16.776
E20: 19 | F20: Whitney Godinez | G20: Hello Darling | H20: nt16.815
E21: 20 | F21: Ryann Pedone | G21: Mister Treis | H21: nt18.713
E22: 21
E23: 22
E24: 23
E25: 24
E26: 25
E27: 26
E28: 27
E29: 28
E30: 29
E31: 30
E32: 31
E33: 32
E34: 33
E35: 34
E36: 35
E37: 36
E38: 37
E39: 38
E40: 39
E41: 40
E42: 41
E43: 42
E44: 43
E45: 44
E46: 45
E47: 46
E48: 47
E49: 48
E50: 49
E51: 50
E52: 51
E53: 52
E54: 53
E55: 54
E56: 55
E57: 56
E58: 57
E59: 58
E60: 59
E61: 60
E62: 61
E63: 62
E64: 63
E65: 64
E66: 65
E67: 66
E68: 67
E69: 68
E70: 69
E71: 70
E72: 71
E73: 72
E74: 73
E75: 74
E76: 75
E77: 76
E78: 77
E79: 78
E80: 79
E81: 80
E82: 81
E83: 82
E84: 83
E85: 84
E86: 85
E87: 86
E88: 87
E89: 88
E90: 89
E91: 90
E92: 91
E93: 92
E94: 93
E95: 94
E96: 95
E97: 96
E98: 97
E99: 98
E100: 99
E101: 100
E102: 101
E103: 102
E104: 103
E105: 104
E106: 105
E107: 106
E108: 107
E109: 108
E110: 109
E111: 110
E112: 111
E113: 112
E114: 113
E115: 114
E116: 115
E117: 116
E118: 117
E119: 118
E120: 119
E121: 120
E122: 121
E123: 122
E124: 123
E125: 124
E126: 125
E127: 126
E128: 127
E129: 128
E130: 129
E131: 130
E132: 131
E133: 132
E134: 133
E135: 134
E136: 135
E137: 136
E138: 137
E139: 138
E140: 139
E141: 140
E142: 141
E143: 142
E144: 143
E145: 144
E146: 145
E147: 146
E148: 147
E149: 148
E150: 149
E151: 150
E152: 151
E153: 152
E154: 153
E155: 154
E156: 155
E157: 156
E158: 157
E159: 158
E160: 159
E161: 160
E162: 161
E163: 162
E164: 163
E165: 164
E166: 165
E167: 166
E168: 167
E169: 168
E170: 169
E171: 170
E172: 171
E173: 172
E174: 173
E175: 174
E176: 175
E177: 176
E178: 177
E179: 178
E180: 179
E181: 180
E182: 181
E183: 182
E184: 183
E185: 184
E186: 185
E187: 186
E188: 187
E189: 188
E190: 189
E191: 190
E192: 191
E193: 192
E194: 193
E195: 194
E196: 195
E197: 196
E198: 197
E199: 198
E200: 199
... 101 more rows

Sheet 12 & Under (hidden)
A1: Futurity | B1: Der | C1: Age Inct. | D1: R/O | E1: Draw | F1: Rider Name | G1: Horse Name | H1: Time | I1: Final Time | J1: Placing | K1: Money Earned
E33: 32
E34: 33
E35: 34
E36: 35
E37: 36
E38: 37
E39: 38
E40: 39
E41: 40
E42: 41
E43: 42
E44: 43
E45: 44
E46: 45
E47: 46
E48: 47
E49: 48
E50: 49
E51: 50
E52: 51
E53: 52
E54: 53
E55: 54
E56: 55
E57: 56
E58: 57
E59: 58
E60: 59
E61: 60
E62: 61
E63: 62
E64: 63
E65: 64
E66: 65
E67: 66
E68: 67
E69: 68
E70: 69
E71: 70
E72: 71
E73: 72
E74: 73
E75: 74
E76: 75
E77: 76
E78: 77
E79: 78
E80: 79
E81: 80
E82: 81
E83: 82
E84: 83
E85: 84
E86: 85
E87: 86
E88: 87
E89: 88
E90: 89
E91: 90
E92: 91
E93: 92
E94: 93
E95: 94
E96: 95
E97: 96
E98: 97
E99: 98
E100: 99
E101: 100
E102: 101
E103: 102
E104: 103
E105: 104
E106: 105
E107: 106
E108: 107
E109: 108
E110: 109
E111: 110
E112: 111
E113: 112
E114: 113
E115: 114
E116: 115
E117: 116
E118: 117
E119: 118
E120: 119
E121: 120
E122: 121
E123: 122
E124: 123
E125: 124
E126: 125
E127: 126
E128: 127
E129: 128
E130: 129
E131: 130
E132: 131
E133: 132
E134: 133
E135: 134
E136: 135
E137: 136
E138: 137
E139: 138
E140: 139
E141: 140
E142: 141
E143: 142
E144: 143
E145: 144
E146: 145
E147: 146
E148: 147
E149: 148
E150: 149
E151: 150
E152: 151
E153: 152
E154: 153
E155: 154
E156: 155
E157: 156
E158: 157
E159: 158
E160: 159
E161: 160
E162: 161
E163: 162
E164: 163
E165: 164
E166: 165
E167: 166
E168: 167
E169: 168
E170: 169
E171: 170
E172: 171
E173: 172
E174: 173
E175: 174
E176: 175
E177: 176
E178: 177
E179: 178
E180: 179
E181: 180
E182: 181
E183: 182
E184: 183
E185: 184
E186: 185
E187: 186
E188: 187
E189: 188
E190: 189
E191: 190
E192: 191
E193: 192
E194: 193
E195: 194
E196: 195
E197: 196
E198: 197
E199: 198
E200: 199
E201: 200
E202: 201
E203: 202
E204: 203
E205: 204
E206: 205
E207: 206
E208: 207
E209: 208
E210: 209
E211: 210
E212: 211
E213: 212
E214: 213
E215: 214
E216: 215
E217: 216
E218: 217
E219: 218
E220: 219
E221: 220
E222: 221
E223: 222
E224: 223
E225: 224
E226: 225
E227: 226
E228: 227
E229: 228
E230: 229
E231: 230
... 70 more rows

Sheet Future Champs
A1: Future Champs
A2: Draw | B2: Rider Name | C2: Horse Name | D2: Time | E2: Placing | F2: Money Earned
A3: 1 | B3: Hadley Donegan | D3: 23.612
A4: 2 | B4: Peyton Smith | C4: Tator | D4: 55.505
A5: 3 | B5: Danley Donegan | D5: 54.749
A6: 4
A7: 5
A8: 6
A9: 7
A10: 8
A11: 9
A12: 10
A13: 10
A14: 11
A15: 12
A16: 13
A17: 14
A18: 15
A19: 16
A20: 17
A21: 18
A22: 19
A23: 20
A24: 21
A25: 22
A26: 23

Sheet BFA 2D Payout (hidden)
A1: BFA 2D Payout
A2: Entry Fee | B2: # Entries | C2: % Payback | D2: Added $ | E2: Total Payout | F2: Each Go
A3: 25 | B3: 19 | C3: 0.8 | D3: 200 | E3: =(A3*$C$3)*B3+D3 -> 580 | F3: 0.3
F4: =$E$3*$F$3 -> 174
A5: $5,000-7,500 Pays 5 Places 4 to 1D 1 to 2D
A6: Placings | B6: 1D | D6: 2D
A7: 1st | B7: =($F$4*$C$7) -> 57.42 | C7: 0.33 | D7: =$F$4*$E$7 -> 12.18 | E7: 0.07
A8: 2nd | B8: =$F$4*$C$8 -> 46.98 | C8: 0.27
A9: 3rd | B9: =$F$4*$C$9 -> 34.8 | C9: 0.2
A10: 4th | B10: =$F$4*$C$10 -> 22.62 | C10: 0.13
A11: Totals | B11: =SUM(B7:B10) -> 161.82 | D11: =SUM(D7:D10) -> 12.18 | E11: =(C7+C8+C9+C10+E7+E8) -> 1
A12: =B11+D11 -> 174
A13: $7,501 - 10,000 Pays 6 Places 4 to 1D, 2 to 2D
A14: Placings | B14: 1D | D14: 2D
A15: 1st | B15: =$F$4*$C$15 -> 50.46 | C15: 0.29 | D15: =$F$4*$E$15 -> 15.66 | E15: 0.09
A16: 2nd | B16: =+$F$4*$C$16 -> 41.76 | C16: 0.24 | D16: =F4*E16 -> 8.7 | E16: 0.05
A17: 3rd | B17: =$F$4*$C$17 -> 33.06 | C17: 0.19
A18: 4th | B18: =$F$4*$C$18 -> 24.36 | C18: 0.14
A19: Totals | B19: =SUM(B15:B18) -> 149.64 | D19: =D16+D15 -> 24.36 | E19: =SUM(C15+C16+C17+C18+E15+E16) -> 1
A20: =D19+B19 -> 174
A21: $10,001 - $15,000 Payes 8 Places 5 to 1D, 3 to 2D
A22: Placings | B22: 1D | D22: 2D
A23: 1st | B23: =F4*C23 -> 41.76 | C23: 0.24 | D23: =F4*E23 -> 12.18 | E23: 0.07
A24: 2nd | B24: =F4*C24 -> 34.8 | C24: 0.2 | D24: =F4*E24 -> 8.7 | E24: 0.05
A25: 3rd | B25: =F4*C25 -> 29.58 | C25: 0.17 | D25: =F4*E25 -> 6.96 | E25: 0.04
A26: 4th | B26: =F4*C26 -> 22.62 | C26: 0.13
A27: 5th | B27: =F4*C27 -> 17.4 | C27: 0.1
A28: Totals | B28: =SUM(B23:B27) -> 146.16 | D28: =SUM(D23:D27) -> 27.84 | E28: =C23+C24+C25+C26+C27+E23+E24+E25 -> 1
A29: =B28+D28 -> 174
A30: $15,001 - $25,000 Payes 11 Places 7 to 1D, 4 to 2D
A31: Placings | B31: 1D | D31: 2D
A32: 1st | B32: =$F$4*C32 -> 36.54 | C32: 0.21 | D32: =$F$4*E32 -> 8.7 | E32: 0.05
A33: 2nd | B33: =$F$4*C33 -> 31.32 | C33: 0.18 | D33: =$F$4*E33 -> 6.96 | E33: 0.04
A34: 3rd | B34: 26.1 | C34: 0.15 | D34: 5.22 | E34: 0.03
A35: 4th | B35: 19.14 | C35: 0.11 | D35: 3.48 | E35: 0.02
A36: 5th | B36: 13.92 | C36: 0.08
A37: 6th | B37: 12.18 | C37: 0.07
A38: 7th | B38: 10.44 | C38: 0.06
A39: Totals | B39: =SUM(B32:B38) -> 149.64 | D39: =SUM(D32:D38) -> 24.36 | E39: =C32+C33+C34+C35+C36+C37+C38+E32+E33+E34+E35 -> 1
A40: =SUM(B39+D39) -> 174
A41: $25,001 - $35,000 Payes 12 Places 8 to 1D, 4 to 2D
A42: Placings | B42: 1D | D42: 2D
A43: 1st | B43: =$F$4*C43 -> 33.06 | C43: 0.19 | D43: =$F$4*E43 -> 8.7 | E43: 0.05
A44: 2nd | B44: =$F$4*C44 -> 26.1 | C44: 0.15 | D44: =$F$4*E44 -> 6.96 | E44: 0.04
A45: 3rd | B45: 20.88 | C45: 0.12 | D45: 5.22 | E45: 0.03
A46: 4th | B46: 17.4 | C46: 0.1 | D46: 3.48 | E46: 0.02
A47: 5th | B47: 15.66 | C47: 0.09
A48: 6th | B48: 13.92 | C48: 0.08
A49: 7th | B49: 12.18 | C49: 0.07
A50: 8th | B50: 10.44 | C50: 0.06
A51: Totals | B51: =SUM(B43:B50) -> 149.64 | D51: =SUM(D43:D46) -> 24.36 | E51: =C43+C44+C45+C46+C47+C48+C49+C50+E43+E44+E45+E46 -> 1
A52: =D51+B51 -> 174

Sheet 2D Payout
A1: 2D Payout
A2: Entry Fee | B2: # Entries | C2: % Payback | D2: Added $ | E2: Total Payout
A3: 50 | B3: 11 | C3: 0.8 | E3: =(A3*$C$3)*B3+D3 -> 440
A5: % in each D | B5: 0.6 | C5: 0.4 | D5: Total % = | E5: =SUM(B5:C5) -> 1
B6: 1D | C6: 2D
B7: =(($A$3*$B$3*$C$3*$B$5)+($D$3*$B$5)) -> 264 | C7: =(($A$3*$B$3*$C$3*$C$5)+($D$3*$C$5)) -> 176
A8: Totals | B8: =SUM(B7) -> 264 | C8: =SUM(C7) -> 176 | D8: =SUM(B8:C8) -> 440
A10: For 1-7 riders 1 place
A11: Placings | B11: 1D | C11: 2D
A12: 1st | B12: =$B$7*$E$12 -> 264 | C12: =$C$7*$E$5 -> 176 | D12: è | E12: 1
A13: Totals | B13: =SUM(B12:B12) -> 264 | C13: =SUM(C12:C12) -> 176 | D13: =SUM(B13:C13) -> 440 | E13: =SUM(E12) -> 1
A15: For 8-11 riders 2 places
A16: Placings | B16: 1D | C16: 2D
A17: 1st | B17: =$B$7*$E$17 -> 158.4 | C17: =$C$7*$E$17 -> 105.6 | D17: è | E17: 0.6
A18: 2nd | B18: =$B$7*$E$18 -> 105.6 | C18: =$C$7*$E$18 -> 70.4 | D18: è | E18: 0.4
A19: Totals | B19: =SUM(B17:B18) -> 264 | C19: =SUM(C17:C18) -> 176 | D19: =SUM(B19:C19) -> 440 | E19: =SUM(E17:E18) -> 1
A21: For 12-15 riders 3 places
A22: Placings | B22: 1D | C22: 2D
A23: 1st | B23: =$B$7*$E$23 -> 132 | C23: =$C$7*$E$23 -> 88 | D23: è | E23: 0.5
A24: 2nd | B24: =$B$7*$E$24 -> 79.2 | C24: =$C$7*$E$24 -> 52.8 | D24: è | E24: 0.3
A25: 3rd | B25: =$B$7*$E$25 -> 52.8 | C25: =$C$7*$E$25 -> 35.2 | D25: è | E25: 0.2
A26: Totals | B26: =SUM(B23:B25) -> 264 | C26: =SUM(C23:C25) -> 176 | D26: =SUM(B26:C26) -> 440 | E26: =SUM(E23:E25) -> 1
A28: For 16-19 riders 4 places
A29: Placings | B29: 1D | C29: 2D
A30: 1st | B30: =$B$7*$E$30 -> 105.6 | C30: =$C$7*$E$30 -> 70.4 | D30: è | E30: 0.4
A31: 2nd | B31: =$B$7*$E$31 -> 79.2 | C31: =$C$7*$E$31 -> 52.8 | D31: è | E31: 0.3
A32: 3rd | B32: =$B$7*$E$32 -> 52.8 | C32: =$C$7*$E$32 -> 35.2 | D32: è | E32: 0.2
A33: 4th | B33: =$B$7*$E$33 -> 26.4 | C33: =$C$7*$E$33 -> 17.6 | D33: è | E33: 0.1
A34: Totals | B34: =SUM(B30:B33) -> 264 | C34: =SUM(C30:C33) -> 176 | D34: =SUM(B34:C34) -> 440 | E34: =SUM(E30:E33) -> 1
A36: For 20-23 riders 5 places
A37: Placings | B37: 1D | C37: 2D
A38: 1st | B38: =$B$7*$E$38 -> 79.2 | C38: =$C$7*$E$38 -> 52.8 | D38: è | E38: 0.3
A39: 2nd | B39: =$B$7*$E$39 -> 66 | C39: =$C$7*$E$39 -> 44 | D39: è | E39: 0.25
A40: 3rd | B40: =$B$7*$E$40 -> 52.8 | C40: =$C$7*$E$40 -> 35.2 | D40: è | E40: 0.2
A41: 4th | B41: =$B$7*$E$41 -> 39.6 | C41: =$C$7*$E$41 -> 26.4 | D41: è | E41: 0.15
A42: 5th | B42: =$B$7*$E$42 -> 26.4 | C42: =$C$7*$E$42 -> 17.6 | D42: è | E42: 0.1
A43: Totals | B43: =SUM(B38:B42) -> 264 | C43: =SUM(C38:C42) -> 176 | D43: =SUM(B43:C43) -> 440 | E43: =SUM(E38:E42) -> 1
A45: For 24-27 riders 6 places
A46: Placings | B46: 1D | C46: 2D
A47: 1st | B47: =$B$7*$E$47 -> 66 | C47: =$C$7*$E$47 -> 44 | D47: è | E47: 0.25
A48: 2nd | B48: =$B$7*$E$48 -> 52.8 | C48: =$C$7*$E$48 -> 35.2 | D48: è | E48: 0.2
A49: 3rd | B49: =$B$7*$E$49 -> 47.52 | C49: =$C$7*$E$49 -> 31.68 | D49: è | E49: 0.18
A50: 4th | B50: =$B$7*$E$50 -> 39.6 | C50: =$C$7*$E$50 -> 26.4 | D50: è | E50: 0.15
A51: 5th | B51: =$B$7*$E$51 -> 31.68 | C51: =$C$7*$E$51 -> 21.12 | D51: è | E51: 0.12
A52: 6th | B52: =$B$7*$E$52 -> 26.4 | C52: =$C$7*$E$52 -> 17.6 | D52: è | E52: 0.1
A53: Totals | B53: =SUM(B47:B52) -> 264 | C53: =SUM(C47:C52) -> 176 | D53: =SUM(B53:C53) -> 440 | E53: =SUM(E47:E52) -> 1
A55: For 28-31 riders 7 places
A56: Placings | B56: 1D | C56: 2D
A57: 1st | B57: =$B$7*$E$57 -> 58.08 | C57: =$C$7*$E$57 -> 38.72 | D57: è | E57: 0.22
A58: 2nd | B58: =$B$7*$E$58 -> 47.52 | C58: =$C$7*$E$58 -> 31.68 | D58: è | E58: 0.18
A59: 3rd | B59: =$B$7*$E$59 -> 42.24 | C59: =$C$7*$E$59 -> 28.16 | D59: è | E59: 0.16
A60: 4th | B60: =$B$7*$E$60 -> 36.96 | C60: =$C$7*$E$60 -> 24.64 | D60: è | E60: 0.14
A61: 5th | B61: =$B$7*$E$61 -> 31.68 | C61: =$C$7*$E$61 -> 21.12 | D61: è | E61: 0.12
A62: 6th | B62: =$B$7*$E$62 -> 26.4 | C62: =$C$7*$E$62 -> 17.6 | D62: è | E62: 0.1
A63: 7th | B63: =$B$7*$E$63 -> 21.12 | C63: =$C$7*$E$63 -> 14.08 | D63: è | E63: 0.08
A64: Totals | B64: =SUM(B57:B63) -> 264 | C64: =SUM(C57:C63) -> 176 | D64: =SUM(B64:C64) -> 440 | E64: =SUM(E57:E63) -> 1
A66: For 32 or more riders 8 places
A67: Placings | B67: 1D | C67: 2D
A68: 1st | B68: =$B$7*$E$68 -> 60.72 | C68: =$C$7*$E$68 -> 40.48 | D68: è | E68: 0.23
A69: 2nd | B69: =$B$7*$E$69 -> 52.8 | C69: =$C$7*$E$69 -> 35.2 | D69: è | E69: 0.2
A70: 3rd | B70: =$B$7*$E$70 -> 44.88 | C70: =$C$7*$E$70 -> 29.92 | D70: è | E70: 0.17
A71: 4th | B71: =$B$7*$E$71 -> 36.96 | C71: =$C$7*$E$71 -> 24.64 | D71: è | E71: 0.14
A72: 5th | B72: =$B$7*$E$72 -> 29.04 | C72: =$C$7*$E$72 -> 19.36 | D72: è | E72: 0.11
A73: 6th | B73: =$B$7*$E$73 -> 21.12 | C73: =$C$7*$E$73 -> 14.08 | D73: è | E73: 0.08
A74: 7th | B74: =$B$7*$E$74 -> 13.2 | C74: =$C$7*$E$74 -> 8.8 | D74: è | E74: 0.05
A75: 8th | B75: =$B$7*$E$75 -> 5.28 | C75: =$C$7*$E$75 -> 3.52 | D75: è | E75: 0.02
A76: Totals | B76: =SUM(B68:B75) -> 264 | C76: =SUM(C68:C75) -> 176 | D76: =SUM(B76:C76) -> 440 | E76: =SUM(E68:E75) -> 1

Sheet 3D Payout (hidden)
A1: 3D Payout
A2: Entry Fee | B2: # Entries | C2: % Payback | D2: $ From Entry | E2: Added $ | F2: Total Payout
A3: 10 | B3: 3 | C3: 0.8 | D3: =$A$3*$C$3*$B$3 -> 24 | F3: =$D$3+$E$3 -> 24
A5: % in each D | B5: 0.5 | C5: 0.3 | D5: 0.2 | E5: Total % = | F5: =SUM(B5:D5) -> 1
B6: 1D | C6: 2D | D6: 3D
B7: =(($A$3*$B$3*$C$3*$B$5)+($E$3*$B$5)) -> 12 | C7: =(($A$3*$B$3*$C$3*$C$5)+($E$3*$C$5)) -> 7.2 | D7: =(($A$3*$B$3*$C$3*$D$5)+($E$3*$D$5)) -> 4.8
A8: Totals | B8: =SUM(B7) -> 12 | C8: =SUM(C7) -> 7.2 | D8: 4.8 | E8: =SUM(B8:D8) -> 24
A10: For 1-10 riders 1 place
A11: Placings | B11: 1D | C11: 2D | D11: 3D
A12: 1st | B12: =$B$7*$F$12 -> 12 | C12: =$C$7*$F$12 -> 7.2 | D12: =$D$7*$F$12 -> 4.8 | E12: è | F12: 1
A13: Totals | B13: =SUM(B12:B12) -> 12 | C13: =SUM(C12:C12) -> 7.2 | D13: =SUM(D12:D12) -> 4.8 | E13: =SUM(B13:D13) -> 24 | F13: =SUM(F12) -> 1
A15: For 11-15 riders 2 places
A16: Placings | B16: 1D | C16: 2D | D16: 3D
A17: 1st | B17: =$B$7*$F$17 -> 7.2 | C17: =$C$7*$F$17 -> 4.32 | D17: =$D$7*$F$17 -> 2.88 | E17: è | F17: 0.6
A18: 2nd | B18: =$B$7*$F$18 -> 4.8 | C18: =$C$7*$F$18 -> 2.88 | D18: =$D$7*$F$18 -> 1.92 | E18: è | F18: 0.4
A19: Totals | B19: =SUM(B17:B18) -> 12 | C19: =SUM(C17:C18) -> 7.2 | D19: =SUM(D17:D18) -> 4.8 | E19: =SUM(B19:D19) -> 24 | F19: =SUM(F17:F18) -> 1
A21: For 16-30 riders 3 places
A22: Placings | B22: 1D | C22: 2D | D22: 3D
A23: 1st | B23: =$B$7*$F$23 -> 6 | C23: =$C$7*$F$23 -> 3.6 | D23: =$D$7*$F$23 -> 2.4 | E23: è | F23: 0.5
A24: 2nd | B24: =$B$7*$F$24 -> 3.6 | C24: =$C$7*$F$24 -> 2.16 | D24: =$D$7*$F$24 -> 1.44 | E24: è | F24: 0.3
A25: 3rd | B25: =$B$7*$F$25 -> 2.4 | C25: =$C$7*$F$25 -> 1.44 | D25: =$D$7*$F$25 -> 0.96 | E25: è | F25: 0.2
A26: Totals | B26: =SUM(B23:B25) -> 12 | C26: =SUM(C23:C25) -> 7.2 | D26: =SUM(D22:D25) -> 4.8 | E26: =SUM(B26:D26) -> 24 | F26: =SUM(F23:F25) -> 1
A28: For 31-60 riders 4 places
A29: Placings | B29: 1D | C29: 2D | D29: 3D
A30: 1st | B30: =$B$7*$F$30 -> 5.04 | C30: =$C$7*$F$30 -> 3.024 | D30: =$D$7*$F$30 -> 2.016 | E30: è | F30: 0.42
A31: 2nd | B31: =$B$7*$F$31 -> 3.48 | C31: =$C$7*$F$31 -> 2.088 | D31: =$D$7*$F$31 -> 1.392 | E31: è | F31: 0.29
A32: 3rd | B32: =$B$7*$F$32 -> 2.28 | C32: =$C$7*$F$32 -> 1.368 | D32: =$D$7*$F$32 -> 0.912 | E32: è | F32: 0.19
A33: 4th | B33: =$B$7*$F$33 -> 1.2 | C33: =$C$7*$F$33 -> 0.72 | D33: =$D$7*$F$33 -> 0.48 | E33: è | F33: 0.1
A34: Totals | B34: =SUM(B30:B33) -> 12 | C34: =SUM(C30:C33) -> 7.2 | D34: =SUM(D30:D33) -> 4.8 | E34: =SUM(B34:D34) -> 24 | F34: =SUM(F30:F33) -> 1
A36: For 61-90 riders 5 places
A37: Placings | B37: 1D | C37: 2D | D37: 3D
A38: 1st | B38: =$B$7*$F$38 -> 4.56 | C38: =$C$7*$F$38 -> 2.736 | D38: =$D$7*$F$38 -> 1.824 | E38: è | F38: 0.38
A39: 2nd | B39: =$B$7*$F$39 -> 3.36 | C39: =$C$7*$F$39 -> 2.016 | D39: =$D$7*$F$39 -> 1.344 | E39: è | F39: 0.28
A40: 3rd | B40: =$B$7*$F$40 -> 2.16 | C40: =$C$7*$F$40 -> 1.296 | D40: =$D$7*$F$40 -> 0.864 | E40: è | F40: 0.18
A41: 4th | B41: =$B$7*$F$41 -> 1.2 | C41: =$C$7*$F$41 -> 0.72 | D41: =$D$7*$F$41 -> 0.48 | E41: è | F41: 0.1
A42: 5th | B42: =$B$7*$F$42 -> 0.72 | C42: =$C$7*$F$42 -> 0.432 | D42: =$D$7*$F$42 -> 0.288 | E42: è | F42: 0.06
A43: Totals | B43: =SUM(B38:B42) -> 12 | C43: =SUM(C38:C42) -> 7.2 | D43: =SUM(D38:D42) -> 4.8 | E43: =SUM(B43:D43) -> 24 | F43: =SUM(F38:F42) -> 1
A45: For 91-120 riders 6 places
A46: Placings | B46: 1D | C46: 2D | D46: 3D
A47: 1st | B47: =$B$7*$F$47 -> 4.32 | C47: =$C$7*$F$47 -> 2.592 | D47: =$D$7*$F$47 -> 1.728 | E47: è | F47: 0.36
A48: 2nd | B48: =$B$7*$F$48 -> 3.12 | C48: =$C$7*$F$48 -> 1.872 | D48: =$D$7*$F$48 -> 1.248 | E48: è | F48: 0.26
A49: 3rd | B49: =$B$7*$F$49 -> 1.92 | C49: =$C$7*$F$49 -> 1.152 | D49: =$D$7*$F$49 -> 0.768 | E49: è | F49: 0.16
A50: 4th | B50: =$B$7*$F$50 -> 1.2 | C50: =$C$7*$F$50 -> 0.72 | D50: =$D$7*$F$50 -> 0.48 | E50: è | F50: 0.1
A51: 5th | B51: =$B$7*$F$51 -> 0.84 | C51: =$C$7*$F$51 -> 0.504 | D51: =$D$7*$F$51 -> 0.336 | E51: è | F51: 0.07
A52: 6th | B52: =$B$7*$F$52 -> 0.6 | C52: =$C$7*$F$52 -> 0.36 | D52: =$D$7*$F$52 -> 0.24 | E52: è | F52: 0.05
A53: Totals | B53: =SUM(B47:B52) -> 12 | C53: =SUM(C47:C52) -> 7.2 | D53: =SUM(D47:D52) -> 4.8 | E53: =SUM(B53:D53) -> 24 | F53: =SUM(F47:F52) -> 1
A55: For 121-200 riders 7 places
A56: Placings | B56: 1D | C56: 2D | D56: 3D
A57: 1st | B57: =$B$7*$F$57 -> 3.12 | C57: =$C$7*$F$57 -> 1.872 | D57: =$D$7*$F$57 -> 1.248 | E57: è | F57: 0.26
A58: 2nd | B58: =$B$7*$F$58 -> 2.4 | C58: =$C$7*$F$58 -> 1.44 | D58: =$D$7*$F$58 -> 0.96 | E58: è | F58: 0.2
A59: 3rd | B59: =$B$7*$F$59 -> 1.8 | C59: =$C$7*$F$59 -> 1.08 | D59: =$D$7*$F$59 -> 0.72 | E59: è | F59: 0.15
A60: 4th | B60: =$B$7*$F$60 -> 1.44 | C60: =$C$7*$F$60 -> 0.864 | D60: =$D$7*$F$60 -> 0.576 | E60: è | F60: 0.12
A61: 5th | B61: =$B$7*$F$61 -> 1.2 | C61: =$C$7*$F$61 -> 0.72 | D61: =$D$7*$F$61 -> 0.48 | E61: è | F61: 0.1
A62: 6th | B62: =$B$7*$F$62 -> 1.08 | C62: =$C$7*$F$62 -> 0.648 | D62: =$D$7*$F$62 -> 0.432 | E62: è | F62: 0.09
A63: 7th | B63: =$B$7*$F$63 -> 0.96 | C63: =$C$7*$F$63 -> 0.576 | D63: =$D$7*$F$63 -> 0.384 | E63: è | F63: 0.08
A64: Totals | B64: =SUM(B57:B63) -> 12 | C64: =SUM(C57:C63) -> 7.2 | D64: =SUM(D57:D63) -> 4.8 | E64: =SUM(B64:D64) -> 24 | F64: =SUM(F57:F63) -> 1
A66: For 201 or more riders 8 places
A67: Placings | B67: 1D | C67: 2D | D67: 3D
A68: 1st | B68: =$B$7*0.24 -> 2.88 | C68: =$C$7*0.24 -> 1.728 | D68: =$D$7*0.24 -> 1.152 | E68: è | F68: 0.24
A69: 2nd | B69: =$B$7*0.18 -> 2.16 | C69: =$C$7*0.18 -> 1.296 | D69: =$D$7*0.18 -> 0.864 | E69: è | F69: 0.18
A70: 3rd | B70: =$B$7*0.15 -> 1.8 | C70: =$C$7*0.15 -> 1.08 | D70: =$D$7*0.15 -> 0.72 | E70: è | F70: 0.15
A71: 4th | B71: =$B$7*0.12 -> 1.44 | C71: =$C$7*0.12 -> 0.864 | D71: =$D$7*0.12 -> 0.576 | E71: è | F71: 0.12
A72: 5th | B72: =$B$7*0.1 -> 1.2 | C72: =$C$7*0.1 -> 0.72 | D72: =$D$7*0.1 -> 0.48 | E72: è | F72: 0.1
A73: 6th | B73: =$B$7*0.08 -> 0.96 | C73: =$C$7*0.08 -> 0.576 | D73: =$D$7*0.08 -> 0.384 | E73: è | F73: 0.08
A74: 7th | B74: =$B$7*0.07 -> 0.84 | C74: =$C$7*0.07 -> 0.504 | D74: =$D$7*0.07 -> 0.336 | E74: è | F74: 0.07
A75: 8th | B75: =$B$7*0.06 -> 0.72 | C75: =$C$7*0.06 -> 0.432 | D75: =$D$7*0.06 -> 0.288 | E75: è | F75: 0.06
A76: Totals | B76: =SUM(B68:B75) -> 12 | C76: =SUM(C68:C75) -> 7.2 | D76: =SUM(D68:D75) -> 4.8 | E76: =SUM(B76:D76) -> 24 | F76: =SUM(F68:F75) -> 1

Sheet 4D Payout BBR (hidden)
A1: 4D Payout BBR
A2: Entry Fee | B2: # Entries | C2: % Payback | D2: $ From Entry | E2: Added $ | F2: Total Payout
A3: 40 | B3: 200 | C3: 0.8 | D3: =$A$3*$C$3*$B$3 -> 6400 | E3: 1100 | F3: =($A$3*$C$3)*$B$3+$E$3 -> 7500
A5: % in each D | B5: 0.35 | C5: 0.3 | D5: 0.2 | E5: 0.15 | F5: Total % Payout | G5: =SUM(B5:E5) -> 1
B6: 1D | C6: 2D | D6: 3D | E6: 4D
B7: =(($A$3*$B$3*$C$3*0.35)+($E$3/4)) -> 2515 | C7: =(($A$3*$B$3*$C$3*0.3)+($E$3/4)) -> 2195 | D7: =(($A$3*$B$3*$C$3*0.2)+($E$3/4)) -> 1555 | E7: =(($A$3*$B$3*$C$3*0.15)+($E$3/4)) -> 1235
A8: Totals | B8: =SUM(B7) -> 2515 | C8: =SUM(C7) -> 2195 | D8: 1555 | E8: 1235 | F8: =SUM(B8:E8) -> 7500
A10: For 1-16 riders 1 place
A11: Placings | B11: 1D | C11: 2D | D11: 3D | E11: 4D
A12: 1st | B12: =$B$7*$G$12 -> 2515 | C12: =$C$7*$G$12 -> 2195 | D12: =$D$7*$G$12 -> 1555 | E12: =$E$7*$G$12 -> 1235 | F12: è | G12: 1
A13: Totals | B13: =SUM(B12:B12) -> 2515 | C13: =SUM(C12:C12) -> 2195 | D13: =SUM(D12:D12) -> 1555 | E13: =SUM(E12:E12) -> 1235 | F13: =SUM(B13:E13) -> 7500 | G13: =SUM(G12) -> 1
A15: For 17-33 riders 2 places
A16: Placings | B16: 1D | C16: 2D | D16: 3D | E16: 4D
A17: 1st | B17: =$B$7*$G$17 -> 1509 | C17: =$C$7*$G$17 -> 1317 | D17: =$D$7*$G$17 -> 933 | E17: =$E$7*$G$17 -> 741 | F17: è | G17: 0.6
A18: 2nd | B18: =$B$7*$G$18 -> 1006 | C18: =$C$7*$G$18 -> 878 | D18: =$D$7*$G$18 -> 622 | E18: =$E$7*$G$18 -> 494 | F18: è | G18: 0.4
A19: Totals | B19: =SUM(B17:B18) -> 2515 | C19: =SUM(C17:C18) -> 2195 | D19: =SUM(D17:D18) -> 1555 | E19: =SUM(E17:E18) -> 1235 | F19: =SUM(B19:E19) -> 7500 | G19: =SUM(G17:G18) -> 1
A21: For 34-66 riders 3 places
A22: Placings | B22: 1D | C22: 2D | D22: 3D | E22: 4D
A23: 1st | B23: =$B$7*$G$23 -> 1257.5 | C23: =$C$7*$G$23 -> 1097.5 | D23: =$D$7*$G$23 -> 777.5 | E23: =$E$7*$G$23 -> 617.5 | F23: è | G23: 0.5
A24: 2nd | B24: =$B$7*$G$24 -> 754.5 | C24: =$C$7*$G$24 -> 658.5 | D24: =$D$7*$G$24 -> 466.5 | E24: =$E$7*$G$24 -> 370.5 | F24: è | G24: 0.3
A25: 3rd | B25: =$B$7*$G$25 -> 503 | C25: =$C$7*$G$25 -> 439 | D25: =$D$7*$G$25 -> 311 | E25: =$E$7*$G$25 -> 247 | F25: è | G25: 0.2
A26: Totals | B26: =SUM(B23:B25) -> 2515 | C26: =SUM(C23:C25) -> 2195 | D26: =SUM(D23:D25) -> 1555 | E26: =SUM(E23:E25) -> 1235 | F26: =SUM(B26:E26) -> 7500 | G26: =SUM(G23:G25) -> 1
A28: For 97-95 riders 4 places
A29: Placings | B29: 1D | C29: 2D | D29: 3D | E29: 4D
A30: 1st | B30: =$B$7*$G$30 -> 1006 | C30: =$C$7*$G$30 -> 878 | D30: =$D$7*$G$30 -> 622 | E30: =$E$7*$G$30 -> 494 | F30: è | G30: 0.4
A31: 2nd | B31: =$B$7*$G$31 -> 754.5 | C31: =$C$7*$G$31 -> 658.5 | D31: =$D$7*$G$31 -> 466.5 | E31: =$E$7*$G$31 -> 370.5 | F31: è | G31: 0.3
A32: 3rd | B32: =$B$7*$G$32 -> 503 | C32: =$C$7*$G$32 -> 439 | D32: =$D$7*$G$32 -> 311 | E32: =$E$7*$G$32 -> 247 | F32: è | G32: 0.2
A33: 4th | B33: =$B$7*$G$33 -> 251.5 | C33: =$C$7*$G$33 -> 219.5 | D33: =$D$7*$G$33 -> 155.5 | E33: =$E$7*$G$33 -> 123.5 | F33: è | G33: 0.1
A34: Totals | B34: =SUM(B30:B33) -> 2515 | C34: =SUM(C30:C33) -> 2195 | D34: =SUM(D30:D33) -> 1555 | E34: =SUM(E30:E33) -> 1235 | F34: =SUM(B34:E34) -> 7500 | G34: =SUM(G30:G33) -> 1
A36: For 96-133 riders 5 places
A37: Placings | B37: 1D | C37: 2D | D37: 3D | E37: 4D
A38: 1st | B38: =$B$7*$G$38 -> 829.95 | C38: =$C$7*$G$38 -> 724.35 | D38: =$D$7*G38 -> 513.15 | E38: =$E$7*$G$38 -> 407.55 | F38: è | G38: 0.33
A39: 2nd | B39: =$B$7*$G$39 -> 679.05 | C39: =$C$7*$G$39 -> 592.65 | D39: =$D$7*$G$39 -> 419.85 | E39: =$E$7*$G$39 -> 333.45 | F39: è | G39: 0.27
A40: 3rd | B40: =$B$7*$G$40 -> 503 | C40: =$C$7*$G$40 -> 439 | D40: =$D$7*$G$40 -> 311 | E40: =$E$7*$G$40 -> 247 | F40: è | G40: 0.2
A41: 4th | B41: =$B$7*$G$41 -> 326.95 | C41: =$C$7*$G$41 -> 285.35 | D41: =$D$7*$G$41 -> 202.15 | E41: =$E$7*$G$41 -> 160.55 | F41: è | G41: 0.13
A42: 5th | B42: =$B$7*$G$42 -> 176.05 | C42: =$C$7*$G$42 -> 153.65 | D42: =$D$7*$G$42 -> 108.85 | E42: =$E$7*$G$42 -> 86.45 | F42: è | G42: 0.07
A43: Totals | B43: =SUM(B38:B42) -> 2515 | C43: =SUM(C38:C42) -> 2195 | D43: =SUM(D38:D42) -> 1555 | E43: =SUM(E38:E42) -> 1235 | F43: =SUM(B43:E43) -> 7500 | G43: =SUM(G38:G42) -> 1
A45: For 134-166 riders 6 places
A46: Placings | B46: 1D | C46: 2D | D46: 3D | E46: 4D
A47: 1st | B47: =$B$7*$G$47 -> 729.35 | C47: =$C$7*$G$47 -> 636.55 | D47: =$D$7*$G$47 -> 450.95 | E47: =$E$7*$G$47 -> 358.15 | F47: è | G47: 0.29
A48: 2nd | B48: =$B$7*$G$48 -> 603.6 | C48: =$C$7*$G$48 -> 526.8 | D48: =$D$7*$G$48 -> 373.2 | E48: =$E$7*$G$48 -> 296.4 | F48: è | G48: 0.24
A49: 3rd | B49: =$B$7*$G$49 -> 477.85 | C49: =$C$7*$G$49 -> 417.05 | D49: =$D$7*$G$49 -> 295.45 | E49: =$E$7*$G$49 -> 234.65 | F49: è | G49: 0.19
A50: 4th | B50: =$B$7*$G$50 -> 352.1 | C50: =$C$7*$G$50 -> 307.3 | D50: =$D$7*$G$50 -> 217.7 | E50: =$E$7*$G$50 -> 172.9 | F50: è | G50: 0.14
A51: 5th | B51: =$B$7*$G$51 -> 226.35 | C51: =$C$7*$G$51 -> 197.55 | D51: =$D$7*$G$51 -> 139.95 | E51: =$E$7*$G$51 -> 111.15 | F51: è | G51: 0.09
A52: 6th | B52: =$B$7*$G$52 -> 125.75 | C52: =$C$7*$G$52 -> 109.75 | D52: =$D$7*$G$52 -> 77.75 | E52: =$E$7*$G$52 -> 61.75 | F52: è | G52: 0.05
A53: Totals | B53: =SUM(B47:B52) -> 2515 | C53: =SUM(C47:C52) -> 2195 | D53: =SUM(D47:D52) -> 1555 | E53: =SUM(E47:E52) -> 1235 | F53: =SUM(B53:E53) -> 7500 | G53: =SUM(G47:G52) -> 1
A55: For 167-222 riders 8 places
A56: Placings | B56: 1D | C56: 2D | D56: 3D | E56: 4D
A57: 1st | B57: =$B$7*$G$57 -> 603.6 | C57: =$C$7*$G$57 -> 526.8 | D57: =$D$7*$G$57 -> 373.2 | E57: =$E$7*$G$57 -> 296.4 | F57: è | G57: 0.24
A58: 2nd | B58: =$B$7*$G$58 -> 503 | C58: =$C$7*$G$58 -> 439 | D58: =$D$7*$G$58 -> 311 | E58: =$E$7*$G$58 -> 247 | F58: è | G58: 0.2
A59: 3rd | B59: =$B$7*$G$59 -> 427.55 | C59: =$C$7*$G$59 -> 373.15 | D59: =$D$7*$G$59 -> 264.35 | E59: =$E$7*$G$59 -> 209.95 | F59: è | G59: 0.17
A60: 4th | B60: =$B$7*$G$60 -> 326.95 | C60: =$C$7*$G$60 -> 285.35 | D60: =$D$7*$G$60 -> 202.15 | E60: =$E$7*$G$60 -> 160.55 | F60: è | G60: 0.13
A61: 5th | B61: =$B$7*$G$61 -> 251.5 | C61: =$C$7*$G$61 -> 219.5 | D61: =$D$7*$G$61 -> 155.5 | E61: =$E$7*$G$61 -> 123.5 | F61: è | G61: 0.1
A62: 6th | B62: =$B$7*$G$62 -> 176.05 | C62: =$C$7*$G$62 -> 153.65 | D62: =$D$7*$G$62 -> 108.85 | E62: =$E$7*$G$62 -> 86.45 | F62: è | G62: 0.07
A63: 7th | B63: =$B$7*$G$63 -> 125.75 | C63: =$C$7*$G$63 -> 109.75 | D63: =$D$7*$G$63 -> 77.75 | E63: =$E$7*$G$63 -> 61.75 | F63: è | G63: 0.05
A64: 8th | B64: =$B$7*$G$64 -> 100.6 | C64: =$C$7*$G$64 -> 87.8 | D64: =$D$7*$G$64 -> 62.2 | E64: =$E$7*$G$64 -> 49.4 | F64: è | G64: 0.04
A65: Totals | B65: =SUM(B57:B64) -> 2515 | C65: =SUM(C57:C64) -> 2195 | D65: =SUM(D57:D64) -> 1555 | E65: =SUM(E57:E64) -> 1235 | F65: =SUM(B65:E65) -> 7500 | G65: =SUM(G57:G64) -> 1
A67: For 223-333 riders 10 places
A68: Placings | B68: 1D | C68: 2D | D68: 3D | E68: 4D
A69: 1st | B69: =$B$7*$G$69 -> 528.15 | C69: =$C$7*$G$69 -> 460.95 | D69: =$D$7*$G$69 -> 326.55 | E69: =$E$7*$G$69 -> 259.35 | F69: è | G69: 0.21
A70: 2nd | B70: =$B$7*$G$70 -> 452.7 | C70: =$C$7*$G$70 -> 395.1 | D70: =$D$7*$G$70 -> 279.9 | E70: =$E$7*$G$70 -> 222.3 | F70: è | G70: 0.18
A71: 3rd | B71: =$B$7*$G$71 -> 377.25 | C71: =$C$7*$G$71 -> 329.25 | D71: =$D$7*$G$71 -> 233.25 | E71: =$E$7*$G$71 -> 185.25 | F71: è | G71: 0.15
A72: 4th | B72: =$B$7*$G$72 -> 301.8 | C72: =$C$7*$G$72 -> 263.4 | D72: =$D$7*$G$72 -> 186.6 | E72: =$E$7*$G$72 -> 148.2 | F72: è | G72: 0.12
A73: 5th | B73: =$B$7*$G$73 -> 226.35 | C73: =$C$7*$G$73 -> 197.55 | D73: =$D$7*$G$73 -> 139.95 | E73: =$E$7*$G$73 -> 111.15 | F73: è | G73: 0.09
A74: 6th | B74: =$B$7*$G$74 -> 176.05 | C74: =$C$7*$G$74 -> 153.65 | D74: =$D$7*$G$74 -> 108.85 | E74: =$E$7*$G$74 -> 86.45 | F74: è | G74: 0.07
A75: 7th | B75: =$B$7*$G$75 -> 150.9 | C75: =$C$7*$G$75 -> 131.7 | D75: =$D$7*$G$75 -> 93.3 | E75: =$E$7*$G$75 -> 74.1 | F75: è | G75: 0.06
A76: 8th | B76: =$B$7*$G$76 -> 125.75 | C76: =$C$7*$G$76 -> 109.75 | D76: =$D$7*$G$76 -> 77.75 | E76: =$E$7*$G$76 -> 61.75 | F76: è | G76: 0.05
A77: 9th | B77: =$B$7*$G$77 -> 100.6 | C77: =$C$7*$G$77 -> 87.8 | D77: =$D$7*$G$77 -> 62.2 | E77: =$E$7*$G$77 -> 49.4 | F77: è | G77: 0.04
A78: 10th | B78: =$B$7*$G$78 -> 75.45 | C78: =$C$7*$G$78 -> 65.85 | D78: =$D$7*$G$78 -> 46.65 | E78: =$E$7*$G$78 -> 37.05 | F78: è | G78: 0.03
A79: Totals | B79: =SUM(B69:B78) -> 2515 | C79: =SUM(C69:C78) -> 2195 | D79: =SUM(D69:D78) -> 1555 | E79: =SUM(E69:E78) -> 1235 | F79: =B79+C79+D79+E79 -> 7500 | G79: =SUM(G69:G78) -> 1
A81: For 334-500 riders 12 places
A82: Placings | B82: 1D | C82: 2D | D82: 3D | E82: 4D
A83: 1st | B83: =$B$7*$G$83 -> 477.85 | C83: =$C$7*$G$83 -> 417.05 | D83: =$D$7*$G$83 -> 295.45 | E83: =$E$7*$G$83 -> 234.65 | F83: è | G83: 0.19
A84: 2nd | B84: =$B$7*$G$84 -> 377.25 | C84: =$C$7*$G$84 -> 329.25 | D84: =$D$7*$G$84 -> 233.25 | E84: =$E$7*$G$84 -> 185.25 | F84: è | G84: 0.15
A85: 3rd | B85: =$B$7*$G$85 -> 301.8 | C85: =$C$7*$G$85 -> 263.4 | D85: =$D$7*$G$85 -> 186.6 | E85: =$E$7*$G$85 -> 148.2 | F85: è | G85: 0.12
A86: 4th | B86: =$B$7*$G$86 -> 251.5 | C86: =$C$7*$G$86 -> 219.5 | D86: =$D$7*$G$86 -> 155.5 | E86: =$E$7*$G$86 -> 123.5 | F86: è | G86: 0.1
A87: 5th | B87: =$B$7*$G$87 -> 226.35 | C87: =$C$7*$G$87 -> 197.55 | D87: =$D$7*$G$87 -> 139.95 | E87: =$E$7*$G$87 -> 111.15 | F87: è | G87: 0.09
A88: 6th | B88: =$B$7*$G$88 -> 201.2 | C88: =$C$7*$G$88 -> 175.6 | D88: =$D$7*$G$88 -> 124.4 | E88: =$E$7*$G$88 -> 98.8 | F88: è | G88: 0.08
A89: 7th | B89: =$B$7*$G$89 -> 176.05 | C89: =$C$7*$G$89 -> 153.65 | D89: =$D$7*$G$89 -> 108.85 | E89: =$E$7*$G$89 -> 86.45 | F89: è | G89: 0.07
A90: 8th | B90: =$B$7*$G$90 -> 150.9 | C90: =$C$7*$G$90 -> 131.7 | D90: =$D$7*$G$90 -> 93.3 | E90: =$E$7*$G$90 -> 74.1 | F90: è | G90: 0.06
A91: 9th | B91: =$B$7*$G$91 -> 125.75 | C91: =$C$7*$G$91 -> 109.75 | D91: =$D$7*$G$91 -> 77.75 | E91: =$E$7*$G$91 -> 61.75 | F91: è | G91: 0.05
A92: 10th | B92: =$B$7*$G$92 -> 100.6 | C92: =$C$7*$G$92 -> 87.8 | D92: =$D$7*$G$92 -> 62.2 | E92: =$E$7*$G$92 -> 49.4 | F92: è | G92: 0.04
A93: 11th | B93: =$B$7*$G$93 -> 75.45 | C93: =$C$7*$G$93 -> 65.85 | D93: =$D$7*$G$93 -> 46.65 | E93: =$E$7*$G$93 -> 37.05 | F93: è | G93: 0.03
A94: 12th | B94: =$B$7*$G$94 -> 50.3 | C94: =$C$7*$G$94 -> 43.9 | D94: =$D$7*$G$94 -> 31.1 | E94: =$E$7*$G$94 -> 24.7 | F94: è | G94: 0.02
A95: Totals | B95: =SUM(B83:B94) -> 2515 | C95: =SUM(C83:C94) -> 2195 | D95: 1555 | E95: 1235 | F95: =B95+C95+D95+E95 -> 7500 | G95: =SUM(G83:G94) -> 1
A97: For 501-750 riders 15 places
A98: Placings | B98: 1D | C98: 2D | D98: 3D | E98: 4D
A99: 1st | B99: =$B$7*$G$99 -> 452.7 | C99: =$C$7*$G$99 -> 395.1 | D99: =$D$7*$G$99 -> 279.9 | E99: =$E$7*$G$99 -> 222.3 | F99: è | G99: 0.18
A100: 2nd | B100: =$B$7*$G$100 -> 377.25 | C100: =$C$7*$G$100 -> 329.25 | D100: =$D$7*$G$100 -> 233.25 | E100: =$E$7*$G$100 -> 185.25 | F100: è | G100: 0.15
A101: 3rd | B101: =$B$7*$G$101 -> 301.8 | C101: =$C$7*$G$101 -> 263.4 | D101: =$D$7*$G$101 -> 186.6 | E101: =$E$7*$G$101 -> 148.2 | F101: è | G101: 0.12
A102: 4th | B102: =$B$7*$G$102 -> 251.5 | C102: =$C$7*$G$102 -> 219.5 | D102: =$D$7*$G$102 -> 155.5 | E102: =$E$7*$G$102 -> 123.5 | F102: è | G102: 0.1
A103: 5th | B103: =$B$7*$G$103 -> 213.775 | C103: =$C$7*$G$103 -> 186.575 | D103: =$D$7*$G$103 -> 132.175 | E103: =$E$7*$G$103 -> 104.975 | F103: è | G103: 0.085
A104: 6th | B104: =$B$7*$G$104 -> 176.05 | C104: =$C$7*$G$104 -> 153.65 | D104: =$D$7*$G$104 -> 108.85 | E104: =$E$7*$G$104 -> 86.45 | F104: è | G104: 0.07
A105: 7th | B105: =$B$7*$G$105 -> 150.9 | C105: =$C$7*$G$105 -> 131.7 | D105: =$D$7*$G$105 -> 93.3 | E105: =$E$7*$G$105 -> 74.1 | F105: è | G105: 0.06
A106: 8th | B106: =$B$7*$G$106 -> 125.75 | C106: =$C$7*$G$106 -> 109.75 | D106: =$D$7*$G$106 -> 77.75 | E106: =$E$7*$G$106 -> 61.75 | F106: è | G106: 0.05
A107: 9th | B107: =$B$7*$G$107 -> 106.8875 | C107: =$C$7*$G$107 -> 93.2875 | D107: =$D$7*$G$107 -> 66.0875 | E107: =$E$7*$G$107 -> 52.4875 | F107: è | G107: 0.0425
A108: 10th | B108: =$B$7*$G$108 -> 88.025 | C108: =$C$7*$G$108 -> 76.825 | D108: =$D$7*$G$108 -> 54.425 | E108: =$E$7*$G$108 -> 43.225 | F108: è | G108: 0.035
A109: 11th | B109: =$B$7*$G$109 -> 75.45 | C109: =$C$7*$G$109 -> 65.85 | D109: =$D$7*$G$109 -> 46.65 | E109: =$E$7*$G$109 -> 37.05 | F109: è | G109: 0.03
A110: 12th | B110: =$B$7*$G$110 -> 62.875 | C110: =$C$7*$G$110 -> 54.875 | D110: =$D$7*$G$110 -> 38.875 | E110: =$E$7*$G$110 -> 30.875 | F110: è | G110: 0.025
A111: 13th | B111: =$B$7*$G$111 -> 50.3 | C111: =$C$7*$G$111 -> 43.9 | D111: =$D$7*$G$111 -> 31.1 | E111: =$E$7*$G$111 -> 24.7 | F111: è | G111: 0.02
A112: 14th | B112: =$B$7*$G$112 -> 44.0125 | C112: =$C$7*$G$112 -> 38.4125 | D112: =$D$7*$G$112 -> 27.2125 | E112: =$E$7*$G$112 -> 21.6125 | F112: è | G112: 0.0175
A113: 15th | B113: =$B$7*$G$113 -> 37.725 | C113: =$C$7*$G$113 -> 32.925 | D113: =$D$7*$G$113 -> 23.325 | E113: =$E$7*$G$113 -> 18.525 | F113: è | G113: 0.015
A114: Totals | B114: =SUM(B99:B113) -> 2515 | C114: =SUM(C99:C113) -> 2195 | D114: 1555 | E114: 1235 | F114: =B114+C114+D114+E114 -> 7500 | G114: =SUM(G99:G113) -> 1
A116: For 751-1200 riders 20 places
A117: Placings | B117: 1D | C117: 2D | D117: 3D | E117: 4D
A118: 1st | B118: =$B$7*$G$118 -> 352.1 | C118: =$C$7*$G$118 -> 307.3 | D118: =$D$7*$G$118 -> 217.7 | E118: =$E$7*$G$118 -> 172.9 | F118: è | G118: 0.14
A119: 2nd | B119: =$B$7*$G$119 -> 276.65 | C119: =$C$7*$G$119 -> 241.45 | D119: =$D$7*$G$119 -> 171.05 | E119: =$E$7*$G$119 -> 135.85 | F119: è | G119: 0.11
A120: 3rd | B120: =$B$7*$G$120 -> 226.35 | C120: =$C$7*$G$120 -> 197.55 | D120: =$D$7*$G$120 -> 139.95 | E120: =$E$7*$G$120 -> 111.15 | F120: è | G120: 0.09
A121: 4th | B121: =$B$7*$G$121 -> 193.655 | C121: =$C$7*$G$121 -> 169.015 | D121: =$D$7*$G$121 -> 119.735 | E121: =$E$7*$G$121 -> 95.095 | F121: è | G121: 0.077
A122: 5th | B122: =$B$7*$G$122 -> 176.05 | C122: =$C$7*$G$122 -> 153.65 | D122: =$D$7*$G$122 -> 108.85 | E122: =$E$7*$G$122 -> 86.45 | F122: è | G122: 0.07
A123: 6th | B123: =$B$7*$G$123 -> 163.475 | C123: =$C$7*$G$123 -> 142.675 | D123: =$D$7*$G$123 -> 101.075 | E123: =$E$7*$G$123 -> 80.275 | F123: è | G123: 0.065
A124: 7th | B124: =$B$7*$G$124 -> 150.9 | C124: =$C$7*$G$124 -> 131.7 | D124: =$D$7*$G$124 -> 93.3 | E124: =$E$7*$G$124 -> 74.1 | F124: è | G124: 0.06
A125: 8th | B125: =$B$7*$G$125 -> 138.325 | C125: =$C$7*$G$125 -> 120.725 | D125: =$D$7*$G$125 -> 85.525 | E125: =$E$7*$G$125 -> 67.925 | F125: è | G125: 0.055
A126: 9th | B126: =$B$7*$G$126 -> 125.75 | C126: =$C$7*$G$126 -> 109.75 | D126: =$D$7*$G$126 -> 77.75 | E126: =$E$7*$G$126 -> 61.75 | F126: è | G126: 0.05
A127: 10th | B127: =$B$7*$G$127 -> 113.175 | C127: =$C$7*$G$127 -> 98.775 | D127: =$D$7*$G$127 -> 69.975 | E127: =$E$7*$G$127 -> 55.575 | F127: è | G127: 0.045
A128: 11th | B128: =$B$7*$G$128 -> 100.6 | C128: =$C$7*$G$128 -> 87.8 | D128: =$D$7*$G$128 -> 62.2 | E128: =$E$7*$G$128 -> 49.4 | F128: è | G128: 0.04
A129: 12th | B129: =$B$7*$G$129 -> 93.055 | C129: =$C$7*$G$129 -> 81.215 | D129: =$D$7*$G$129 -> 57.535 | E129: =$E$7*$G$129 -> 45.695 | F129: è | G129: 0.037
A130: 13th | B130: =$B$7*$G$130 -> 82.995 | C130: =$C$7*$G$130 -> 72.435 | D130: =$D$7*$G$130 -> 51.315 | E130: =$E$7*$G$130 -> 40.755 | F130: è | G130: 0.033
A131: 14th | B131: =$B$7*$G$131 -> 72.935 | C131: =$C$7*$G$131 -> 63.655 | D131: =$D$7*$G$131 -> 45.095 | E131: =$E$7*$G$131 -> 35.815 | F131: è | G131: 0.029
A132: 15th | B132: =$B$7*$G$132 -> 62.875 | C132: =$C$7*$G$132 -> 54.875 | D132: =$D$7*$G$132 -> 38.875 | E132: =$E$7*$G$132 -> 30.875 | F132: è | G132: 0.025
A133: 16th | B133: =$B$7*$G$133 -> 52.815 | C133: =$C$7*$G$133 -> 46.095 | D133: =$D$7*$G$133 -> 32.655 | E133: =$E$7*$G$133 -> 25.935 | F133: è | G133: 0.021
A134: 17th | B134: =$B$7*$G$134 -> 42.755 | C134: =$C$7*$G$134 -> 37.315 | D134: =$D$7*$G$134 -> 26.435 | E134: =$E$7*$G$134 -> 20.995 | F134: è | G134: 0.017
A135: 18th | B135: =$B$7*$G$135 -> 35.21 | C135: =$C$7*$G$135 -> 30.73 | D135: =$D$7*$G$135 -> 21.77 | E135: =$E$7*$G$135 -> 17.29 | F135: è | G135: 0.014
A136: 19th | B136: =$B$7*$G$136 -> 30.18 | C136: =$C$7*$G$136 -> 26.34 | D136: =$D$7*$G$136 -> 18.66 | E136: =$E$7*$G$136 -> 14.82 | F136: è | G136: 0.012
A137: 20th | B137: =$B$7*$G$137 -> 25.15 | C137: =$C$7*$G$137 -> 21.95 | D137: =$D$7*$G$137 -> 15.55 | E137: =$E$7*$G$137 -> 12.35 | F137: è | G137: 0.01
A138: Totals | B138: =SUM(B118:B137) -> 2515 | C138: =SUM(C118:C137) -> 2195 | D138: 1555 | E138: 1235 | F138: =B138+C138+D138+E138 -> 7500 | G138: =SUM(G118:G137) -> 1
A140: For 1201 or More riders 30 places
A141: Placings | B141: 1D | C141: 2D | D141: 3D | E141: 4D
A142: 1st | B142: =$B$7*$G$142 -> 301.8 | C142: =$C$7*$G$142 -> 263.4 | D142: =$D$7*$G$142 -> 186.6 | E142: =$E$7*$G$142 -> 148.2 | F142: è | G142: 0.12
A143: 2nd | B143: =$B$7*$G$143 -> 238.925 | C143: =$C$7*$G$143 -> 208.525 | D143: =$D$7*$G$143 -> 147.725 | E143: =$E$7*$G$143 -> 117.325 | F143: è | G143: 0.095
A144: 3rd | B144: =$B$7*$G$144 -> 183.595 | C144: =$C$7*$G$144 -> 160.235 | D144: =$D$7*$G$144 -> 113.515 | E144: =$E$7*$G$144 -> 90.155 | F144: è | G144: 0.073
A145: 4th | B145: =$B$7*$G$145 -> 155.93 | C145: =$C$7*$G$145 -> 136.09 | D145: =$D$7*$G$145 -> 96.41 | E145: =$E$7*$G$145 -> 76.57 | F145: è | G145: 0.062
A146: 5th | B146: =$B$7*$G$146 -> 125.75 | C146: =$C$7*$G$146 -> 109.75 | D146: =$D$7*$G$146 -> 77.75 | E146: =$E$7*$G$146 -> 61.75 | F146: è | G146: 0.05
A147: 6th | B147: =$B$7*$G$147 -> 113.175 | C147: =$C$7*$G$147 -> 98.775 | D147: =$D$7*$G$147 -> 69.975 | E147: =$E$7*$G$147 -> 55.575 | F147: è | G147: 0.045
A148: 7th | B148: =$B$7*$G$148 -> 108.145 | C148: =$C$7*$G$148 -> 94.385 | D148: =$D$7*$G$148 -> 66.865 | E148: =$E$7*$G$148 -> 53.105 | F148: è | G148: 0.043
A149: 8th | B149: =$B$7*$G$149 -> 100.6 | C149: =$C$7*$G$149 -> 87.8 | D149: =$D$7*$G$149 -> 62.2 | E149: =$E$7*$G$149 -> 49.4 | F149: è | G149: 0.04
A150: 9th | B150: =$B$7*$G$150 -> 93.055 | C150: =$C$7*$G$150 -> 81.215 | D150: =$D$7*$G$150 -> 57.535 | E150: =$E$7*$G$150 -> 45.695 | F150: è | G150: 0.037
A151: 10th | B151: =$B$7*$G$151 -> 88.025 | C151: =$C$7*$G$151 -> 76.825 | D151: =$D$7*$G$151 -> 54.425 | E151: =$E$7*$G$151 -> 43.225 | F151: è | G151: 0.035
A152: 11th | B152: =$B$7*$G$152 -> 82.995 | C152: =$C$7*$G$152 -> 72.435 | D152: =$D$7*$G$152 -> 51.315 | E152: =$E$7*$G$152 -> 40.755 | F152: è | G152: 0.033
A153: 12th | B153: =$B$7*$G$153 -> 77.965 | C153: =$C$7*$G$153 -> 68.045 | D153: =$D$7*$G$153 -> 48.205 | E153: =$E$7*$G$153 -> 38.285 | F153: è | G153: 0.031
A154: 13th | B154: =$B$7*$G$154 -> 72.935 | C154: =$C$7*$G$154 -> 63.655 | D154: =$D$7*$G$154 -> 45.095 | E154: =$E$7*$G$154 -> 35.815 | F154: è | G154: 0.029
A155: 14th | B155: =$B$7*$G$155 -> 67.905 | C155: =$C$7*$G$155 -> 59.265 | D155: =$D$7*$G$155 -> 41.985 | E155: =$E$7*$G$155 -> 33.345 | F155: è | G155: 0.027
A156: 15th | B156: =$B$7*$G$156 -> 62.875 | C156: =$C$7*$G$156 -> 54.875 | D156: =$D$7*$G$156 -> 38.875 | E156: =$E$7*$G$156 -> 30.875 | F156: è | G156: 0.025
A157: 16th | B157: =$B$7*$G$157 -> 60.36 | C157: =$C$7*$G$157 -> 52.68 | D157: =$D$7*$G$157 -> 37.32 | E157: =$E$7*$G$157 -> 29.64 | F157: è | G157: 0.024
A158: 17th | B158: =$B$7*$G$158 -> 57.845 | C158: =$C$7*$G$158 -> 50.485 | D158: =$D$7*$G$158 -> 35.765 | E158: =$E$7*$G$158 -> 28.405 | F158: è | G158: 0.023
A159: 18th | B159: =$B$7*$G$159 -> 55.33 | C159: =$C$7*$G$159 -> 48.29 | D159: =$D$7*$G$159 -> 34.21 | E159: =$E$7*$G$159 -> 27.17 | F159: è | G159: 0.022
A160: 19th | B160: =$B$7*$G$160 -> 52.815 | C160: =$C$7*$G$160 -> 46.095 | D160: =$D$7*$G$160 -> 32.655 | E160: =$E$7*$G$160 -> 25.935 | F160: è | G160: 0.021
A161: 20th | B161: =$B$7*$G$161 -> 50.3 | C161: =$C$7*$G$161 -> 43.9 | D161: =$D$7*$G$161 -> 31.1 | E161: =$E$7*$G$161 -> 24.7 | F161: è | G161: 0.02
A162: 21st | B162: =$B$7*$G$162 -> 47.785 | C162: =$C$7*$G$162 -> 41.705 | D162: =$D$7*$G$162 -> 29.545 | E162: =$E$7*$G$162 -> 23.465 | F162: è | G162: 0.019
A163: 22nd | B163: =$B$7*$G$163 -> 45.27 | C163: =$C$7*$G$163 -> 39.51 | D163: =$D$7*$G$163 -> 27.99 | E163: =$E$7*$G$163 -> 22.23 | F163: è | G163: 0.018
A164: 23rd | B164: =$B$7*$G$164 -> 42.755 | C164: =$C$7*$G$164 -> 37.315 | D164: =$D$7*$G$164 -> 26.435 | E164: =$E$7*$G$164 -> 20.995 | F164: è | G164: 0.017
A165: 24th | B165: =$B$7*$G$165 -> 40.24 | C165: =$C$7*$G$165 -> 35.12 | D165: =$D$7*$G$165 -> 24.88 | E165: =$E$7*$G$165 -> 19.76 | F165: è | G165: 0.016
A166: 25th | B166: =$B$7*$G$166 -> 37.725 | C166: =$C$7*$G$166 -> 32.925 | D166: =$D$7*$G$166 -> 23.325 | E166: =$E$7*$G$166 -> 18.525 | F166: è | G166: 0.015
A167: 26th | B167: =$B$7*$G$167 -> 35.21 | C167: =$C$7*$G$167 -> 30.73 | D167: =$D$7*$G$167 -> 21.77 | E167: =$E$7*$G$167 -> 17.29 | F167: è | G167: 0.014
A168: 27th | B168: =$B$7*$G$168 -> 32.695 | C168: =$C$7*$G$168 -> 28.535 | D168: =$D$7*$G$168 -> 20.215 | E168: =$E$7*$G$168 -> 16.055 | F168: è | G168: 0.013
A169: 28th | B169: =$B$7*$G$169 -> 30.18 | C169: =$C$7*$G$169 -> 26.34 | D169: =$D$7*$G$169 -> 18.66 | E169: =$E$7*$G$169 -> 14.82 | F169: è | G169: 0.012
A170: 29th | B170: =$B$7*$G$170 -> 27.665 | C170: =$C$7*$G$170 -> 24.145 | D170: =$D$7*$G$170 -> 17.105 | E170: =$E$7*$G$170 -> 13.585 | F170: è | G170: 0.011
A171: 30th | B171: =$B$7*$G$171 -> 25.15 | C171: =$C$7*$G$171 -> 21.95 | D171: =$D$7*$G$171 -> 15.55 | E171: =$E$7*$G$171 -> 12.35 | F171: è | G171: 0.01
A172: Totals | B172: =SUM(B142:B171) -> 2515 | C172: =SUM(C142:C171) -> 2195 | D172: =SUM(D142:D171) -> 1555 | E172: =SUM(E142:E171) -> 1235 | F172: =B172+C172+D172+E172 -> 7500 | G172: =SUM(G142:G171) -> 1

Sheet 5D Payout BBR
A1: 5D Payout BBR
A2: Entry Fee | B2: # Entries | C2: % Payback | D2: $ From Entry | E2: Added $ | F2: Total Payout | G2: Total $ Held
A3: 100 | B3: 4 | C3: 0.8 | D3: =$A$3*$C$3*$B$3 -> 320 | F3: =($A$3*$C$3)*$B$3+$E$3 -> 320 | G3: =$A$3*(100%-$C$3)*$B$3 -> 80
A5: % in each D | B5: 0.3 | C5: 0.25 | D5: 0.2 | E5: 0.15 | F5: 0.1 | G5: Total % Payout | H5: =SUM(B5:F5) -> 1
B6: 1D | C6: 2D | D6: 3D | E6: 4D | F6: 5D
B7: =(($A$3*$B$3*$C$3*$B$5)+($E$3*$B$5)) -> 96 | C7: =(($A$3*$B$3*$C$3*$C$5)+($E$3*$C$5)) -> 80 | D7: =(($A$3*$B$3*$C$3*$D$5)+($E$3*$D$5)) -> 64 | E7: =(($A$3*$B$3*$C$3*$E$5)+($E$3*$E$5)) -> 48 | F7: =(($A$3*$B$3*$C$3*$F$5)+($E$3*$F$5)) -> 32
A8: Totals | B8: =SUM(B7) -> 96 | C8: =SUM(C7) -> 80 | D8: 64 | E8: 48 | F8: 32 | G8: =SUM(B8:F8) -> 320
A10: For 1-25 riders 1 place
A11: Placings | B11: 1D | C11: 2D | D11: 3D | E11: 4D | F11: 5D
A12: 1st | B12: =$B$7*$H$12 -> 96 | C12: =$C$7*$H$12 -> 80 | D12: =$D$7*$H$12 -> 64 | E12: =$E$7*$H$12 -> 48 | F12: =$F$7*$H$12 -> 32 | G12: è | H12: 1
A13: Totals | B13: =SUM(B12:B12) -> 96 | C13: =SUM(C12:C12) -> 80 | D13: =SUM(D12:D12) -> 64 | E13: =SUM(E12:E12) -> 48 | F13: =SUM(F12) -> 32 | G13: =SUM(B13:F13) -> 320 | H13: =SUM(H12) -> 1
A15: For 26-50 riders 2 places
A16: Placings | B16: 1D | C16: 2D | D16: 3D | E16: 4D | F16: 5D
A17: 1st | B17: =$B$7*$H$17 -> 57.6 | C17: =$C$7*$H$17 -> 48 | D17: =$D$7*$H$17 -> 38.4 | E17: =$E$7*$H$17 -> 28.8 | F17: =$F$7*$H$17 -> 19.2 | G17: è | H17: 0.6
A18: 2nd | B18: =$B$7*$H$18 -> 38.4 | C18: =$C$7*$H$18 -> 32 | D18: =$D$7*$H$18 -> 25.6 | E18: =$E$7*$H$18 -> 19.2 | F18: =$F$7*$H$18 -> 12.8 | G18: è | H18: 0.4
A19: Totals | B19: =SUM(B17:B18) -> 96 | C19: =SUM(C17:C18) -> 80 | D19: =SUM(D17:D18) -> 64 | E19: =SUM(E17:E18) -> 48 | F19: =SUM(F17:F18) -> 32 | G19: =SUM(B19:F19) -> 320 | H19: =SUM(H17:H18) -> 1
A21: For 51-100 riders 3 places
A22: Placings | B22: 1D | C22: 2D | D22: 3D | E22: 4D | F22: 5D
A23: 1st | B23: =$B$7*$H$23 -> 48 | C23: =$C$7*$H$23 -> 40 | D23: =$D$7*$H$23 -> 32 | E23: =$E$7*$H$23 -> 24 | F23: =$F$7*$H$23 -> 16 | G23: è | H23: 0.5
A24: 2nd | B24: =$B$7*$H$24 -> 28.8 | C24: =$C$7*$H$24 -> 24 | D24: =$D$7*$H$24 -> 19.2 | E24: =$E$7*$H$24 -> 14.4 | F24: =$F$7*$H$24 -> 9.6 | G24: è | H24: 0.3
A25: 3rd | B25: =$B$7*$H$25 -> 19.2 | C25: =$C$7*$H$25 -> 16 | D25: =$D$7*$H$25 -> 12.8 | E25: =$E$7*$H$25 -> 9.6 | F25: =$F$7*$H$25 -> 6.4 | G25: è | H25: 0.2
A26: Totals | B26: =SUM(B23:B25) -> 96 | C26: =SUM(C23:C25) -> 80 | D26: =SUM(D23:D25) -> 64 | E26: =SUM(E23:E25) -> 48 | F26: =SUM(F23:F25) -> 32 | G26: =SUM(B26:F26) -> 320 | H26: =SUM(H23:H25) -> 1
A28: For 101-143 riders 4 places
A29: Placings | B29: 1D | C29: 2D | D29: 3D | E29: 4D | F29: 5D
A30: 1st | B30: =$B$7*$H$30 -> 38.4 | C30: =$C$7*$H$30 -> 32 | D30: =$D$7*$H$30 -> 25.6 | E30: =$E$7*$H$30 -> 19.2 | F30: =$F$7*$H$30 -> 12.8 | G30: è | H30: 0.4
A31: 2nd | B31: =$B$7*$H$31 -> 28.8 | C31: =$C$7*$H$31 -> 24 | D31: =$D$7*$H$31 -> 19.2 | E31: =$E$7*$H$31 -> 14.4 | F31: =$F$7*$H$31 -> 9.6 | G31: è | H31: 0.3
A32: 3rd | B32: =$B$7*$H$32 -> 19.2 | C32: =$C$7*$H$32 -> 16 | D32: =$D$7*$H$32 -> 12.8 | E32: =$E$7*$H$32 -> 9.6 | F32: =$F$7*$H$32 -> 6.4 | G32: è | H32: 0.2
A33: 4th | B33: =$B$7*$H$33 -> 9.6 | C33: =$C$7*$H$33 -> 8 | D33: =$D$7*$H$33 -> 6.4 | E33: =$E$7*$H$33 -> 4.8 | F33: =$F$7*$H$33 -> 3.2 | G33: è | H33: 0.1
A34: Totals | B34: =SUM(B30:B33) -> 96 | C34: =SUM(C30:C33) -> 80 | D34: =SUM(D30:D33) -> 64 | E34: =SUM(E30:E33) -> 48 | F34: =SUM(F30:F33) -> 32 | G34: =SUM(B34:F34) -> 320 | H34: =SUM(H30:H33) -> 1
A36: For 144-200 riders 5 places
A37: Placings | B37: 1D | C37: 2D | D37: 3D | E37: 4D | F37: 5D
A38: 1st | B38: =$B$7*$H$38 -> 31.68 | C38: =$C$7*$H$38 -> 26.4 | D38: 709.5 | E38: =$E$7*$H$38 -> 15.84 | F38: =$F$7*$H$38 -> 10.56 | G38: è | H38: 0.33
A39: 2nd | B39: =$B$7*$H$39 -> 25.92 | C39: =$C$7*$H$39 -> 21.6 | D39: 580.5 | E39: =$E$7*$H$39 -> 12.96 | F39: =$F$7*$H$39 -> 8.64 | G39: è | H39: 0.27
A40: 3rd | B40: =$B$7*$H$40 -> 19.2 | C40: =$C$7*$H$40 -> 16 | D40: 430 | E40: =$E$7*$H$40 -> 9.6 | F40: =$F$7*$H$40 -> 6.4 | G40: è | H40: 0.2
A41: 4th | B41: =$B$7*$H$41 -> 12.48 | C41: =$C$7*$H$41 -> 10.4 | D41: 279.5 | E41: =$E$7*$H$41 -> 6.24 | F41: =$F$7*$H$41 -> 4.16 | G41: è | H41: 0.13
A42: 5th | B42: =$B$7*$H$42 -> 6.72 | C42: =$C$7*$H$42 -> 5.6 | D42: 150.5 | E42: =$E$7*$H$42 -> 3.36 | F42: =$F$7*$H$42 -> 2.24 | G42: è | H42: 0.07
A43: Totals | B43: =SUM(B38:B42) -> 96 | C43: =SUM(C38:C42) -> 80 | D43: =SUM(D38:D42) -> 2150 | E43: =SUM(E38:E42) -> 48 | F43: =SUM(F38:F42) -> 32 | G43: =SUM(B43:F43) -> 2406 | H43: =SUM(H38:H42) -> 1
A45: For 201-250 riders 6 places
A46: Placings | B46: 1D | C46: 2D | D46: 3D | E46: 4D | F46: 5D
A47: 1st | B47: =$B$7*$H$47 -> 27.84 | C47: =$C$7*$H$47 -> 23.2 | D47: =$D$7*$H$47 -> 18.56 | E47: =$E$7*$H$47 -> 13.92 | F47: =$F$7*$H$47 -> 9.28 | G47: è | H47: 0.29
A48: 2nd | B48: =$B$7*$H$48 -> 23.04 | C48: =$C$7*$H$48 -> 19.2 | D48: =$D$7*$H$48 -> 15.36 | E48: =$E$7*$H$48 -> 11.52 | F48: =$F$7*$H$48 -> 7.68 | G48: è | H48: 0.24
A49: 3rd | B49: =$B$7*$H$49 -> 18.24 | C49: =$C$7*$H$49 -> 15.2 | D49: =$D$7*$H$49 -> 12.16 | E49: =$E$7*$H$49 -> 9.12 | F49: =$F$7*$H$49 -> 6.08 | G49: è | H49: 0.19
A50: 4th | B50: =$B$7*$H$50 -> 13.44 | C50: =$C$7*$H$50 -> 11.2 | D50: =$D$7*$H$50 -> 8.96 | E50: =$E$7*$H$50 -> 6.72 | F50: =$F$7*$H$50 -> 4.48 | G50: è | H50: 0.14
A51: 5th | B51: =$B$7*$H$51 -> 8.64 | C51: =$C$7*$H$51 -> 7.2 | D51: =$D$7*$H$51 -> 5.76 | E51: =$E$7*$H$51 -> 4.32 | F51: =$F$7*$H$51 -> 2.88 | G51: è | H51: 0.09
A52: 6th | B52: =$B$7*$H$52 -> 4.8 | C52: =$C$7*$H$52 -> 4 | D52: =$D$7*$H$52 -> 3.2 | E52: =$E$7*$H$52 -> 2.4 | F52: =$F$7*$H$52 -> 1.6 | G52: è | H52: 0.05
A53: Totals | B53: =SUM(B47:B52) -> 96 | C53: =SUM(C47:C52) -> 80 | D53: =SUM(D47:D52) -> 64 | E53: =SUM(E47:E52) -> 48 | F53: =SUM(F47:F52) -> 32 | G53: =SUM(B53:F53) -> 320 | H53: =SUM(H47:H52) -> 1
A55: For 251-333 riders 8 places
A56: Placings | B56: 1D | C56: 2D | D56: 3D | E56: 4D | F56: 5D
A57: 1st | B57: =$B$7*$H$57 -> 23.04 | C57: =$C$7*$H$57 -> 19.2 | D57: =$D$7*$H$57 -> 15.36 | E57: =$E$7*$H$57 -> 11.52 | F57: =$F$7*$H$57 -> 7.68 | G57: è | H57: 0.24
A58: 2nd | B58: =$B$7*$H$58 -> 19.2 | C58: =$C$7*$H$58 -> 16 | D58: =$D$7*$H$58 -> 12.8 | E58: =$E$7*$H$58 -> 9.6 | F58: =$F$7*$H$58 -> 6.4 | G58: è | H58: 0.2
A59: 3rd | B59: =$B$7*$H$59 -> 16.32 | C59: =$C$7*$H$59 -> 13.6 | D59: =$D$7*$H$59 -> 10.88 | E59: =$E$7*$H$59 -> 8.16 | F59: =$F$7*$H$59 -> 5.44 | G59: è | H59: 0.17
A60: 4th | B60: =$B$7*$H$60 -> 12.48 | C60: =$C$7*$H$60 -> 10.4 | D60: =$D$7*$H$60 -> 8.32 | E60: =$E$7*$H$60 -> 6.24 | F60: =$F$7*$H$60 -> 4.16 | G60: è | H60: 0.13
A61: 5th | B61: =$B$7*$H$61 -> 9.6 | C61: =$C$7*$H$61 -> 8 | D61: =$D$7*$H$61 -> 6.4 | E61: =$E$7*$H$61 -> 4.8 | F61: =$F$7*$H$61 -> 3.2 | G61: è | H61: 0.1
A62: 6th | B62: =$B$7*$H$62 -> 6.72 | C62: =$C$7*$H$62 -> 5.6 | D62: =$D$7*$H$62 -> 4.48 | E62: =$E$7*$H$62 -> 3.36 | F62: =$F$7*$H$62 -> 2.24 | G62: è | H62: 0.07
A63: 7th | B63: =$B$7*$H$63 -> 4.8 | C63: =$C$7*$H$63 -> 4 | D63: =$D$7*$H$63 -> 3.2 | E63: =$E$7*$H$63 -> 2.4 | F63: =$F$7*$H$63 -> 1.6 | G63: è | H63: 0.05
A64: 8th | B64: =$B$7*$H$64 -> 3.84 | C64: =$C$7*$H$64 -> 3.2 | D64: =$D$7*$H$64 -> 2.56 | E64: =$E$7*$H$64 -> 1.92 | F64: =$F$7*$H$64 -> 1.28 | G64: è | H64: 0.04
A65: Totals | B65: =SUM(B57:B64) -> 96 | C65: =SUM(C57:C64) -> 80 | D65: =SUM(D57:D64) -> 64 | E65: =SUM(E57:E64) -> 48 | F65: =SUM(F57:F64) -> 32 | G65: =SUM(B65:F65) -> 320 | H65: =SUM(H57:H64) -> 1
A67: For 334-500 riders 10 places
A68: Placings | B68: 1D | C68: 2D | D68: 3D | E68: 4D | F68: 5D
A69: 1st | B69: =$B$7*$H$69 -> 20.16 | C69: =$C$7*$H$69 -> 16.8 | D69: =$D$7*$H$69 -> 13.44 | E69: =$E$7*$H$69 -> 10.08 | F69: =$F$7*$H$69 -> 6.72 | G69: è | H69: 0.21
A70: 2nd | B70: =$B$7*$H$70 -> 17.28 | C70: =$C$7*$H$70 -> 14.4 | D70: =$D$7*$H$70 -> 11.52 | E70: =$E$7*$H$70 -> 8.64 | F70: =$F$7*$H$70 -> 5.76 | G70: è | H70: 0.18
A71: 3rd | B71: =$B$7*$H$71 -> 14.4 | C71: =$C$7*$H$71 -> 12 | D71: =$D$7*$H$71 -> 9.6 | E71: =$E$7*$H$71 -> 7.2 | F71: =$F$7*$H$71 -> 4.8 | G71: è | H71: 0.15
A72: 4th | B72: =$B$7*$H$72 -> 11.52 | C72: =$C$7*$H$72 -> 9.6 | D72: =$D$7*$H$72 -> 7.68 | E72: =$E$7*$H$72 -> 5.76 | F72: =$F$7*$H$72 -> 3.84 | G72: è | H72: 0.12
A73: 5th | B73: =$B$7*$H$73 -> 8.64 | C73: =$C$7*$H$73 -> 7.2 | D73: =$D$7*$H$73 -> 5.76 | E73: =$E$7*$H$73 -> 4.32 | F73: =$F$7*$H$73 -> 2.88 | G73: è | H73: 0.09
A74: 6th | B74: =$B$7*$H$74 -> 6.72 | C74: =$C$7*$H$74 -> 5.6 | D74: =$D$7*$H$74 -> 4.48 | E74: =$E$7*$H$74 -> 3.36 | F74: =$F$7*$H$74 -> 2.24 | G74: è | H74: 0.07
A75: 7th | B75: =$B$7*$H$75 -> 5.76 | C75: =$C$7*$H$75 -> 4.8 | D75: =$D$7*$H$75 -> 3.84 | E75: =$E$7*$H$75 -> 2.88 | F75: =$F$7*$H$75 -> 1.92 | G75: è | H75: 0.06
A76: 8th | B76: =$B$7*$H$76 -> 4.8 | C76: =$C$7*$H$76 -> 4 | D76: =$D$7*$H$76 -> 3.2 | E76: =$E$7*$H$76 -> 2.4 | F76: =$F$7*$H$76 -> 1.6 | G76: è | H76: 0.05
A77: 9th | B77: =$B$7*$H$77 -> 3.84 | C77: =$C$7*$H$77 -> 3.2 | D77: =$D$7*$H$77 -> 2.56 | E77: =$E$7*$H$77 -> 1.92 | F77: =$F$7*$H$77 -> 1.28 | G77: è | H77: 0.04
A78: 10th | B78: =$B$7*$H$78 -> 2.88 | C78: =$C$7*$H$78 -> 2.4 | D78: =$D$7*$H$78 -> 1.92 | E78: =$E$7*$H$78 -> 1.44 | F78: =$F$7*$H$78 -> 0.96 | G78: è | H78: 0.03
A79: Totals | B79: =SUM(B69:B78) -> 96 | C79: =SUM(C69:C78) -> 80 | D79: 64 | E79: 48 | F79: 32 | G79: =SUM(B79:F79) -> 320 | H79: =SUM(H69:H78) -> 1
A81: For 501-666 riders 12 places
A82: Placings | B82: 1D | C82: 2D | D82: 3D | E82: 4D | F82: 5D
A83: 1st | B83: =$B$7*$H$83 -> 18.24 | C83: =$C$7*$H$83 -> 15.2 | D83: =$D$7*$H$83 -> 12.16 | E83: =$E$7*$H$83 -> 9.12 | F83: =$F$7*$H$83 -> 6.08 | G83: è | H83: 0.19
A84: 2nd | B84: =$B$7*$H$84 -> 14.4 | C84: =$C$7*$H$84 -> 12 | D84: =$D$7*$H$84 -> 9.6 | E84: =$E$7*$H$84 -> 7.2 | F84: =$F$7*$H$84 -> 4.8 | G84: è | H84: 0.15
A85: 3rd | B85: =$B$7*$H$85 -> 11.52 | C85: =$C$7*$H$85 -> 9.6 | D85: =$D$7*$H$85 -> 7.68 | E85: =$E$7*$H$85 -> 5.76 | F85: =$F$7*$H$85 -> 3.84 | G85: è | H85: 0.12
A86: 4th | B86: =$B$7*$H$86 -> 9.6 | C86: =$C$7*$H$86 -> 8 | D86: =$D$7*$H$86 -> 6.4 | E86: =$E$7*$H$86 -> 4.8 | F86: =$F$7*$H$86 -> 3.2 | G86: è | H86: 0.1
A87: 5th | B87: =$B$7*$H$87 -> 8.64 | C87: =$C$7*$H$87 -> 7.2 | D87: =$D$7*$H$87 -> 5.76 | E87: =$E$7*$H$87 -> 4.32 | F87: =$F$7*$H$87 -> 2.88 | G87: è | H87: 0.09
A88: 6th | B88: =$B$7*$H$88 -> 7.68 | C88: =$C$7*$H$88 -> 6.4 | D88: =$D$7*$H$88 -> 5.12 | E88: =$E$7*$H$88 -> 3.84 | F88: =$F$7*$H$88 -> 2.56 | G88: è | H88: 0.08
A89: 7th | B89: =$B$7*$H$89 -> 6.72 | C89: =$C$7*$H$89 -> 5.6 | D89: =$D$7*$H$89 -> 4.48 | E89: =$E$7*$H$89 -> 3.36 | F89: =$F$7*$H$89 -> 2.24 | G89: è | H89: 0.07
A90: 8th | B90: =$B$7*$H$90 -> 5.76 | C90: =$C$7*$H$90 -> 4.8 | D90: =$D$7*$H$90 -> 3.84 | E90: =$E$7*$H$90 -> 2.88 | F90: =$F$7*$H$90 -> 1.92 | G90: è | H90: 0.06
A91: 9th | B91: =$B$7*$H$91 -> 4.8 | C91: =$C$7*$H$91 -> 4 | D91: =$D$7*$H$91 -> 3.2 | E91: =$E$7*$H$91 -> 2.4 | F91: =$F$7*$H$91 -> 1.6 | G91: è | H91: 0.05
A92: 10th | B92: =$B$7*$H$92 -> 3.84 | C92: =$C$7*$H$92 -> 3.2 | D92: =$D$7*$H$92 -> 2.56 | E92: =$E$7*$H$92 -> 1.92 | F92: =$F$7*$H$92 -> 1.28 | G92: è | H92: 0.04
A93: 11th | B93: =$B$7*$H$93 -> 2.88 | C93: =$C$7*$H$93 -> 2.4 | D93: =$D$7*$H$93 -> 1.92 | E93: =$E$7*$H$93 -> 1.44 | F93: =$F$7*$H$93 -> 0.96 | G93: è | H93: 0.03
A94: 12th | B94: =$B$7*$H$94 -> 1.92 | C94: =$C$7*$H$94 -> 1.6 | D94: =$D$7*$H$94 -> 1.28 | E94: =$E$7*$H$94 -> 0.96 | F94: =$F$7*$H$94 -> 0.64 | G94: è | H94: 0.02
A95: Totals | B95: =SUM(B83:B94) -> 96 | C95: =SUM(C83:C94) -> 80 | D95: =SUM(D83:D94) -> 64 | E95: =SUM(E83:E94) -> 48 | F95: =SUM(F83:F94) -> 32 | G95: =SUM(B95:F95) -> 320 | H95: =SUM(H83:H94) -> 1
A97: For 667-1000 riders 15 places
A98: Placings | B98: 1D | C98: 2D | D98: 3D | E98: 4D | F98: 5D
A99: 1st | B99: =$B$7*$H$99 -> 17.28 | C99: =$C$7*$H$99 -> 14.4 | D99: =$D$7*$H$99 -> 11.52 | E99: =$E$7*$H$99 -> 8.64 | F99: =$F$7*$H$99 -> 5.76 | G99: è | H99: 0.18
A100: 2nd | B100: =$B$7*$H$100 -> 14.4 | C100: =$C$7*$H$100 -> 12 | D100: =$D$7*$H$100 -> 9.6 | E100: =$E$7*$H$100 -> 7.2 | F100: =$F$7*$H$100 -> 4.8 | G100: è | H100: 0.15
A101: 3rd | B101: =$B$7*$H$101 -> 11.52 | C101: =$C$7*$H$101 -> 9.6 | D101: =$D$7*$H$101 -> 7.68 | E101: =$E$7*$H$101 -> 5.76 | F101: =$F$7*$H$101 -> 3.84 | G101: è | H101: 0.12
A102: 4th | B102: =$B$7*$H$102 -> 9.6 | C102: =$C$7*$H$102 -> 8 | D102: =$D$7*$H$102 -> 6.4 | E102: =$E$7*$H$102 -> 4.8 | F102: =$F$7*$H$102 -> 3.2 | G102: è | H102: 0.1
A103: 5th | B103: =$B$7*$H$103 -> 8.16 | C103: =$C$7*$H$103 -> 6.8 | D103: =$D$7*$H$103 -> 5.44 | E103: =$E$7*$H$103 -> 4.08 | F103: =$F$7*$H$103 -> 2.72 | G103: è | H103: 0.085
A104: 6th | B104: =$B$7*$H$104 -> 6.72 | C104: =$C$7*$H$104 -> 5.6 | D104: =$D$7*$H$104 -> 4.48 | E104: =$E$7*$H$104 -> 3.36 | F104: =$F$7*$H$104 -> 2.24 | G104: è | H104: 0.07
A105: 7th | B105: =$B$7*$H$105 -> 5.76 | C105: =$C$7*$H$105 -> 4.8 | D105: =$D$7*$H$105 -> 3.84 | E105: =$E$7*$H$105 -> 2.88 | F105: =$F$7*$H$105 -> 1.92 | G105: è | H105: 0.06
A106: 8th | B106: =$B$7*$H$106 -> 4.8 | C106: =$C$7*$H$106 -> 4 | D106: =$D$7*$H$106 -> 3.2 | E106: =$E$7*$H$106 -> 2.4 | F106: =$F$7*$H$106 -> 1.6 | G106: è | H106: 0.05
A107: 9th | B107: =$B$7*$H$107 -> 4.08 | C107: =$C$7*$H$107 -> 3.4 | D107: =$D$7*$H$107 -> 2.72 | E107: =$E$7*$H$107 -> 2.04 | F107: =$F$7*$H$107 -> 1.36 | G107: è | H107: 0.0425
A108: 10th | B108: =$B$7*$H$108 -> 3.36 | C108: =$C$7*$H$108 -> 2.8 | D108: =$D$7*$H$108 -> 2.24 | E108: =$E$7*$H$108 -> 1.68 | F108: =$F$7*$H$108 -> 1.12 | G108: è | H108: 0.035
A109: 11th | B109: =$B$7*$H$109 -> 2.88 | C109: =$C$7*$H$109 -> 2.4 | D109: =$D$7*$H$109 -> 1.92 | E109: =$E$7*$H$109 -> 1.44 | F109: =$F$7*$H$109 -> 0.96 | G109: è | H109: 0.03
A110: 12th | B110: =$B$7*$H$110 -> 2.4 | C110: =$C$7*$H$110 -> 2 | D110: =$D$7*$H$110 -> 1.6 | E110: =$E$7*$H$110 -> 1.2 | F110: =$F$7*$H$110 -> 0.8 | G110: è | H110: 0.025
A111: 13th | B111: =$B$7*$H$111 -> 1.92 | C111: =$C$7*$H$111 -> 1.6 | D111: =$D$7*$H$111 -> 1.28 | E111: =$E$7*$H$111 -> 0.96 | F111: =$F$7*$H$111 -> 0.64 | G111: è | H111: 0.02
A112: 14th | B112: =$B$7*$H$112 -> 1.68 | C112: =$C$7*$H$112 -> 1.4 | D112: =$D$7*$H$112 -> 1.12 | E112: =$E$7*$H$112 -> 0.84 | F112: =$F$7*$H$112 -> 0.56 | G112: è | H112: 0.0175
A113: 15th | B113: =$B$7*$H$113 -> 1.44 | C113: =$C$7*$H$113 -> 1.2 | D113: =$D$7*$H$113 -> 0.96 | E113: =$E$7*$H$113 -> 0.72 | F113: =$F$7*$H$113 -> 0.48 | G113: è | H113: 0.015
A114: Totals | B114: =SUM(B99:B113) -> 96 | C114: =SUM(C99:C113) -> 80 | D114: =SUM(D99:D113) -> 64 | E114: =SUM(E99:E113) -> 48 | F114: =SUM(F99:F113) -> 32 | G114: =SUM(B114:F114) -> 320 | H114: =SUM(H99:H113) -> 1
A116: For 1001-1500 riders 20 places
A117: Placings | B117: 1D | C117: 2D | D117: 3D | E117: 4D | F117: 5D
A118: 1st | B118: =$B$7*$H$118 -> 13.44 | C118: =$C$7*$H$118 -> 11.2 | D118: =$D$7*$H$118 -> 8.96 | E118: =$E$7*$H$118 -> 6.72 | F118: =$F$7*$H$118 -> 4.48 | G118: è | H118: 0.14
A119: 2nd | B119: =$B$7*$H$119 -> 10.56 | C119: =$C$7*$H$119 -> 8.8 | D119: =$D$7*$H$119 -> 7.04 | E119: =$E$7*$H$119 -> 5.28 | F119: =$F$7*$H$119 -> 3.52 | G119: è | H119: 0.11
A120: 3rd | B120: =$B$7*$H$120 -> 8.64 | C120: =$C$7*$H$120 -> 7.2 | D120: =$D$7*$H$120 -> 5.76 | E120: =$E$7*$H$120 -> 4.32 | F120: =$F$7*$H$120 -> 2.88 | G120: è | H120: 0.09
A121: 4th | B121: =$B$7*$H$121 -> 7.392 | C121: =$C$7*$H$121 -> 6.16 | D121: =$D$7*$H$121 -> 4.928 | E121: =$E$7*$H$121 -> 3.696 | F121: =$F$7*$H$121 -> 2.464 | G121: è | H121: 0.077
A122: 5th | B122: =$B$7*$H$122 -> 6.72 | C122: =$C$7*$H$122 -> 5.6 | D122: =$D$7*$H$122 -> 4.48 | E122: =$E$7*$H$122 -> 3.36 | F122: =$F$7*$H$122 -> 2.24 | G122: è | H122: 0.07
A123: 6th | B123: =$B$7*$H$123 -> 6.24 | C123: =$C$7*$H$123 -> 5.2 | D123: =$D$7*$H$123 -> 4.16 | E123: =$E$7*$H$123 -> 3.12 | F123: =$F$7*$H$123 -> 2.08 | G123: è | H123: 0.065
A124: 7th | B124: =$B$7*$H$124 -> 5.76 | C124: =$C$7*$H$124 -> 4.8 | D124: =$D$7*$H$124 -> 3.84 | E124: =$E$7*$H$124 -> 2.88 | F124: =$F$7*$H$124 -> 1.92 | G124: è | H124: 0.06
A125: 8th | B125: =$B$7*$H$125 -> 5.28 | C125: =$C$7*$H$125 -> 4.4 | D125: =$D$7*$H$125 -> 3.52 | E125: =$E$7*$H$125 -> 2.64 | F125: =$F$7*$H$125 -> 1.76 | G125: è | H125: 0.055
A126: 9th | B126: =$B$7*$H$126 -> 4.8 | C126: =$C$7*$H$126 -> 4 | D126: =$D$7*$H$126 -> 3.2 | E126: =$E$7*$H$126 -> 2.4 | F126: =$F$7*$H$126 -> 1.6 | G126: è | H126: 0.05
A127: 10th | B127: =$B$7*$H$127 -> 4.32 | C127: =$C$7*$H$127 -> 3.6 | D127: =$D$7*$H$127 -> 2.88 | E127: =$E$7*$H$127 -> 2.16 | F127: =$F$7*$H$127 -> 1.44 | G127: è | H127: 0.045
A128: 11th | B128: =$B$7*$H$128 -> 3.84 | C128: =$C$7*$H$128 -> 3.2 | D128: =$D$7*$H$128 -> 2.56 | E128: =$E$7*$H$128 -> 1.92 | F128: =$F$7*$H$128 -> 1.28 | G128: è | H128: 0.04
A129: 12th | B129: =$B$7*$H$129 -> 3.552 | C129: =$C$7*$H$129 -> 2.96 | D129: =$D$7*$H$129 -> 2.368 | E129: =$E$7*$H$129 -> 1.776 | F129: =$F$7*$H$129 -> 1.184 | G129: è | H129: 0.037
A130: 13th | B130: =$B$7*$H$130 -> 3.168 | C130: =$C$7*$H$130 -> 2.64 | D130: =$D$7*$H$130 -> 2.112 | E130: =$E$7*$H$130 -> 1.584 | F130: =$F$7*$H$130 -> 1.056 | G130: è | H130: 0.033
A131: 14th | B131: =$B$7*$H$131 -> 2.784 | C131: =$C$7*$H$131 -> 2.32 | D131: =$D$7*$H$131 -> 1.856 | E131: =$E$7*$H$131 -> 1.392 | F131: =$F$7*$H$131 -> 0.928 | G131: è | H131: 0.029
A132: 15th | B132: =$B$7*$H$132 -> 2.4 | C132: =$C$7*$H$132 -> 2 | D132: =$D$7*$H$132 -> 1.6 | E132: =$E$7*$H$132 -> 1.2 | F132: =$F$7*$H$132 -> 0.8 | G132: è | H132: 0.025
A133: 16th | B133: =$B$7*$H$133 -> 2.016 | C133: =$C$7*$H$133 -> 1.68 | D133: =$D$7*$H$133 -> 1.344 | E133: =$E$7*$H$133 -> 1.008 | F133: =$F$7*$H$133 -> 0.672 | G133: è | H133: 0.021
A134: 17th | B134: =$B$7*$H$134 -> 1.632 | C134: =$C$7*$H$134 -> 1.36 | D134: =$D$7*$H$134 -> 1.088 | E134: =$E$7*$H$134 -> 0.816 | F134: =$F$7*$H$134 -> 0.544 | G134: è | H134: 0.017
A135: 18th | B135: =$B$7*$H$135 -> 1.344 | C135: =$C$7*$H$135 -> 1.12 | D135: =$D$7*$H$135 -> 0.896 | E135: =$E$7*$H$135 -> 0.672 | F135: =$F$7*$H$135 -> 0.448 | G135: è | H135: 0.014
A136: 19th | B136: =$B$7*$H$136 -> 1.152 | C136: =$C$7*$H$136 -> 0.96 | D136: =$D$7*$H$136 -> 0.768 | E136: =$E$7*$H$136 -> 0.576 | F136: =$F$7*$H$136 -> 0.384 | G136: è | H136: 0.012
A137: 20th | B137: =$B$7*$H$137 -> 0.96 | C137: =$C$7*$H$137 -> 0.8 | D137: =$D$7*$H$137 -> 0.64 | E137: =$E$7*$H$137 -> 0.48 | F137: =$F$7*$H$137 -> 0.32 | G137: è | H137: 0.01
A138: Totals | B138: =SUM(B118:B137) -> 96 | C138: =SUM(C118:C137) -> 80 | D138: 64 | E138: 48 | F138: 32 | G138: =SUM(B138:F138) -> 320 | H138: =SUM(H118:H137) -> 1
A140: For 1501 or More riders 30 places
A141: Placings | B141: 1D | C141: 2D | D141: 3D | E141: 4D | F141: 5D
A142: 1st | B142: =$B$7*$H142 -> 11.52 | C142: =$C$7*$H142 -> 9.6 | D142: =$D$7*$H142 -> 7.68 | E142: =$E$7*$H142 -> 5.76 | F142: =$F$7*$H142 -> 3.84 | G142: è | H142: 0.12
A143: 2nd | B143: =$B$7*$H143 -> 9.12 | C143: 7.6 | D143: 6.08 | E143: 4.56 | F143: 3.04 | G143: è | H143: 0.095
A144: 3rd | B144: =$B$7*$H144 -> 7.008 | C144: 5.84 | D144: 4.672 | E144: 3.504 | F144: 2.336 | G144: è | H144: 0.073
A145: 4th | B145: =$B$7*$H145 -> 5.952 | C145: 4.96 | D145: 3.968 | E145: 2.976 | F145: 1.984 | G145: è | H145: 0.062
A146: 5th | B146: 4.8 | C146: 4 | D146: 3.2 | E146: 2.4 | F146: 1.6 | G146: è | H146: 0.05
A147: 6th | B147: 4.32 | C147: 3.6 | D147: 2.88 | E147: 2.16 | F147: 1.44 | G147: è | H147: 0.045
A148: 7th | B148: 4.128 | C148: 3.44 | D148: 2.752 | E148: 2.064 | F148: 1.376 | G148: è | H148: 0.043
A149: 8th | B149: 3.84 | C149: 3.2 | D149: 2.56 | E149: 1.92 | F149: 1.28 | G149: è | H149: 0.04
A150: 9th | B150: 3.552 | C150: 2.96 | D150: 2.368 | E150: 1.776 | F150: 1.184 | G150: è | H150: 0.037
A151: 10th | B151: 3.36 | C151: 2.8 | D151: 2.24 | E151: 1.68 | F151: 1.12 | G151: è | H151: 0.035
A152: 11th | B152: 3.168 | C152: 2.64 | D152: 2.112 | E152: 1.584 | F152: 1.056 | G152: è | H152: 0.033
A153: 12th | B153: 2.976 | C153: 2.48 | D153: 1.984 | E153: 1.488 | F153: 0.992 | G153: è | H153: 0.031
A154: 13th | B154: 2.784 | C154: 2.32 | D154: 1.856 | E154: 1.392 | F154: 0.928 | G154: è | H154: 0.029
A155: 14th | B155: 2.592 | C155: 2.16 | D155: 1.728 | E155: 1.296 | F155: 0.864 | G155: è | H155: 0.027
A156: 15th | B156: 2.4 | C156: 2 | D156: 1.6 | E156: 1.2 | F156: 0.8 | G156: è | H156: 0.025
A157: 16th | B157: 2.304 | C157: 1.92 | D157: 1.536 | E157: 1.152 | F157: 0.768 | G157: è | H157: 0.024
A158: 17th | B158: 2.208 | C158: 1.84 | D158: 1.472 | E158: 1.104 | F158: 0.736 | G158: è | H158: 0.023
A159: 18th | B159: 2.112 | C159: 1.76 | D159: 1.408 | E159: 1.056 | F159: 0.704 | G159: è | H159: 0.022
A160: 19th | B160: 2.016 | C160: 1.68 | D160: 1.344 | E160: 1.008 | F160: 0.672 | G160: è | H160: 0.021
A161: 20th | B161: 1.92 | C161: 1.6 | D161: 1.28 | E161: 0.96 | F161: 0.64 | G161: è | H161: 0.02
A162: 21st | B162: 1.824 | C162: 1.52 | D162: 1.216 | E162: 0.912 | F162: 0.608 | G162: è | H162: 0.019
A163: 22nd | B163: 1.728 | C163: 1.44 | D163: 1.152 | E163: 0.864 | F163: 0.576 | G163: è | H163: 0.018
A164: 23rd | B164: 1.632 | C164: 1.36 | D164: 1.088 | E164: 0.816 | F164: 0.544 | G164: è | H164: 0.017
A165: 24th | B165: 1.536 | C165: 1.28 | D165: 1.024 | E165: 0.768 | F165: 0.512 | G165: è | H165: 0.016
A166: 25th | B166: 1.44 | C166: 1.2 | D166: 0.96 | E166: 0.72 | F166: 0.48 | G166: è | H166: 0.015
A167: 26th | B167: 1.344 | C167: 1.12 | D167: 0.896 | E167: 0.672 | F167: 0.448 | G167: è | H167: 0.014
A168: 27th | B168: 1.248 | C168: 1.04 | D168: 0.832 | E168: 0.624 | F168: 0.416 | G168: è | H168: 0.013
A169: 28th | B169: 1.152 | C169: 0.96 | D169: 0.768 | E169: 0.576 | F169: 0.384 | G169: è | H169: 0.012
A170: 29th | B170: 1.056 | C170: 0.88 | D170: 0.704 | E170: 0.528 | F170: 0.352 | G170: è | H170: 0.011
A171: 30th | B171: 0.96 | C171: 0.8 | D171: 0.64 | E171: 0.48 | F171: 0.32 | G171: è | H171: 0.01
A172: Totals | B172: =SUM(B142:B171) -> 96 | C172: =SUM(C142:C171) -> 80 | D172: 64 | E172: 48 | F172: 32 | G172: =SUM(B172:F172) -> 320 | H172: =SUM(H142:H171) -> 1

Sheet DON'T TOUCH (hidden)
A2: Yes | C2: S | D2: 5 | E2: X
C3: A | D3: 10
C4: Y | D4: 15
C5: P | D5: BP
D6: SCR
